Workbook

Sheet Guide d'utilisateur
B2: PRÉVISION DES VENTES D'AGNEAUX ET/OU DE SUJETS REPRODUCTEURS
B3: L'objectif de cet outil est de permettre une planification des ventes d'agneaux et de sujets de reproduction en considérant différents facteurs de la régie du troupeau.
B5: Une bonne planification des ventes permet d'arrimer les revenus potentiels et les besoins financiers pour couvrir les différentes dépenses encourues. En combinaison avec un plan d'affaires complet, cet outil permet de bonifier un budget prévisionnel en considérant les ventes d'ovins selon une planification des groupes d'accouplement et des performances attendues. Voici donc les différentes étapes pour bien utiliser le chiffrier.
C10: INSTRUCTIONS : Remplir les cases grises de l'onglet prévision des ventes et suivre les 15 étapes
C11: Nombre de brebis : Indiquer le nombre de brebis que vous allez posséder.
C12: Nombre de groupes : Indiquer le nombre de groupes pour répartir vos saillies en utilisant le menu déroulant (de 1 à 8 groupes)
C13: Rythme de production : Déterminer le rythme de votre production en utilisant le menu déroulant (de 8 à 12 mois). Sachez que 8 mois représentent un rythme d'agnelage visé de 1,5 par année, alors que 12 mois représentent un rythme de 1 agnelage par année.
C14: Date de la 1re saillie : Cette date déterminera le positionnement de tous les autres groupes. Il est donc important de bien la choisir. Pour ce faire, considérer l'âge des agnelles ou le stade physiologique des sujets achetés.
C15: Période de saillie en contre-saison : Déterminer la séquence des mois pouvant affecter l'activité de reproduction des sujets. Le choix de la race et de la technique de désaisonnement sont des facteurs importants à considérer.
C17: Taux de fécondité : En fonction de la période d'accouplement, prévoir un taux de fécondité en fonction de la race des brebis, des performances historiques du troupeau ou tout autre facteur de régie pouvant influencer le taux de fécondité.
C19: Nombre d'agnelles gardées : Prévoir un taux de remplacement pour les agnelles gardées. Si vous envisagez d'acheter votre remplacement, inscrire 0 %. Le nombre d'agnelles gardées sera déduit des agneaux vendables.
C20: Sujets sélectionnés pour la vente : Pour ceux qui envisagent de vendre des sujets de reproduction, inscrire le nombre d'agnelles et de béliers qui seront sélectionnés pour la vente au cours de la prochaine année.
C21: Nombre de sujets par groupe : Au besoin, vous pouvez modifier le nombre de sujets par groupe. Assurez-vous d'avoir une répartition adéquate en fonction de la taille du troupeau et du nombre de groupes prévus.
C22: Date de saillie : À partir de la date de la première saillie inscrite à l'étape 4 ainsi que des choix déterminés aux étapes 2 et 3, une planification automatique de la fréquence des saillies est générée. Si vous devez changer certaines dates, il est possible de le faire manuellement sans affecter la séquence. Vous devrez vous assurer du réalisme dans le temps de la fréquence pour chaque groupe modifié.
C23: Prolificité : Établir le taux de prolificité moyen de chaque groupe en fonction de la race, de l'âge, de la saison ou de toute autre information connue à propos des groupes. Pour vous aider, vous pouvez vous référer au tableau des performances annuelles par race évaluées sur GenOvis. (https://genovis.ca/performance-des-races-evaluees/)
C25: Mortalité : Établir le taux de mortalité moyen de chaque groupe en fonction de sa prolificité, de la saison ou de toute autre information pertinente. Le taux de mortalité doit inclure toutes les pertes d'agneaux avant et après sevrage. Pour vous aider, vous pouvez vous référer au même tableau sur GenOvis (https://genovis.ca/performance-des-races-evaluees/)
C26: Sélection de la répartition des ventes d'agneaux : Établir en pourcentage la répartition des agneaux selon la catégorie lait et léger. Les autres catégories se calculeront automatiquement.
C27: Durée de la croissance/finition des agneaux et des sujets de remplacement : Établir le nombre de jours moyen correspondant à la période de croissance à partir de la date de naissance (date moyenne) du groupe jusqu'à la vente pour chaque catégorie.
C28: Le poids des ovins à la vente : Établir pour chaque catégorie d'ovins le poids à la vente en kilogramme de poids vif. Concernant les sujets reproducteurs, assurez-vous de respecter les conditions d'admissibilité au programme ASRA : https://www.fadq.qc.ca/fileadmin/fr/assurance-stabilisation/resume-agneaux-2021.pdf
C30: Une fois toutes les étapes réalisées, il vous sera possible de consulter un rapport des performances annuelles attendues ainsi qu'une prévision de la répartition annuelle des ventes des différentes catégories d'ovins.
C31: Profitez de ce chiffrier pour peaufiner votre plan d'affaires ou pour faire des scénarios de prévisions des ventes.
A34: Une réalisation du CEPOQ et Stéphanie Landry, agronome au ministère de l'Agriculture, des Pêcheries et de l'Alimentation (MAPAQ). Avec la collaboration de l'équipe des Références économiques du CRAAQ.
C40: Un remerciement spécial à Pierre-Luc Faucher, agronome, pour ses précieux commentaires.

Sheet Prévision des Ventes
C2: PRÉVISION DES VENTES D'AGNEAUX ET/OU DE SUJETS REPRODUCTEURS | AL2: SECTION À CACHER
R4: =VLOOKUP(H11,$R$67:$S$78,2,FALSE) -> 2 | S4: =VLOOKUP(I11,$R$67:$S$78,2,FALSE) -> 8
R5: =IF(S4=12,1,S4+1) -> 9 | S5: =IF(R4=1,12,R4-1) -> 1 | AP5: Validation remplacement
B6: 1 | C6: Nombre de brebis au troupeau | F6: 100 | AM6: Intervalle saillie | AN6: =+F8*30 -> 240 | AP6: =YEAR(F9) -> 2020 | AQ6: =SUMIF($S$27:$S$50,AP6,$O$27:$O$50) -> 0
B7: 2 | C7: Nombre de groupe | F7: 4 | AM7: Intervalle entre deux groupes | AN7: =AN6/F7 -> 60 | AP7: =+AP6+1 -> 2021 | AQ7: =SUMIF($S$27:$S$50,AP7,$O$27:$O$50) -> 20.4
B8: 3 | C8: Rythme de production (mois) | F8: 8 | AM8: saillie à agnelage | AN8: 143 | AP8: =+AP7+1 -> 2022 | AQ8: =SUMIF($S$27:$S$50,AP8,$O$27:$O$50) -> 20.4
B9: 4 | C9: Date 1ère saillie (groupe 1) | F9: 2020-10-01 | K9: Fécondité | L9: 6 | AM9: Nbre agnelle total/an | AN9: =+F6*L14 -> 20 | AP9: 2023 | AQ9: =SUMIF($S$27:$S$50,AP9,$O$27:$O$50) -> 20.4 | AR9: *manque de ligne…
B11: 5 | C11: Période de saillies en contre-saison | H11: Février | I11: Août | K11: Taux : | L11: 0.7
C12: Période de saillies en saison | H12: =VLOOKUP(R5,$R$82:$S$93,2,FALSE) -> Septembre | I12: =VLOOKUP(S5,$R$82:$S$93,2,FALSE) -> Janvier | K12: Taux : | L12: 0.85
B14: 7 | C14: Nombre d'agnelles gardées pour le remplacement par année (% du troupeau) | L14: 0.2 | M14: =L14*F6 -> 20 | AM14: Nbre à prendre/groupe agnelage | AN14: =ROUNDUP(AN9/AQ23,1) -> 3.4
C16: Taux de sélection prévu annuellement pour la vente (%) | I16: =I17/(I59/2) -> 0.2631578947 | K16: Agnelles | L16: =L17/(I59/2) -> 0.01754385965 | M16: Béliers | R16: Mois en chiffre
B17: 8 | C17: Sujets sélectionnés pour la vente (nb/année): | I17: 30 | L17: 2 | X17: 13
W19: Prévision des ventes d'agneaux et sujets de remplacement | AQ19: Agnelage to agnelage
O20: 15 | P20: 14 | W20: 0.05 | Y20: 0.05 | AA20: =(100%-(W20+Y20+AC20+AE20)) -> 0.7596491228 | AC20: =I17/I59 -> 0.1315789474 | AE20: =L17/I59 -> 0.008771929825 | AP20: 1er | AQ20: =H27 -> 2021-02-23 | AT20: Choix: | AU20: =F7 -> 4
W21: AGNEAUX LAIT | Y21: AGNEAUX LÉGERS | AA21: AGNEAUX LOURDS | AC21: AGNELLES | AE21: BÉLIERS | AO21: *enlever 10 à 365 pour que ca arrive correct. Sinon chevauchement de mois | AP21: max | AQ21: =AQ20+355 -> 2022-02-13 | AU21: Table des groupes
C22: Prévision des ventes en fonction de la répartition des groupes d'agnelages et des performances techniques | W22: 60 | X22: jours d'âge à la vente | Y22: 90 | Z22: jours d'âge à la vente | AA22: 180 | AB22: jours d'âge à la vente | AC22: 180 | AD22: jours d'âge à la vente | AE22: 300 | AF22: jours d'âge à la vente
W23: 23 | X23: Poids vif vendu (kg) | Y23: 34 | Z23: Poids vif vendu (kg) | AA23: 40 | AB23: Poids vif vendu (kg) | AC23: 40 | AD23: Poids vif vendu (kg) | AE23: 48.2 | AF23: Poids vif vendu (kg) | AP23: Total agnelage/an | AQ23: =SUM(AQ27:AQ44) -> 6 | AT23: Choix valide: | AU23: =IF(AU25=$AU$20,1,0) -> 0 | AV23: =IF(AV25=$AU$20,1,0) -> 0 | AW23: 0 | AX23: 1 | AY23: 0 | AZ23: 0 | BA23: 0 | BB23: 0
C25: Groupe | D25: 9 Nombre Brebis | E25: 10 Date Saillie | F25: Fin Saillie | H25: Début Agnelage | I25: Fin Agnelage | K25: Fécondité Échographie | L25: Brebis Gestantes | M25: 11 Prolificité | N25: 12 Mortalité totale | O25: Remplacement (tête) | P25: Agneaux vendables | R25: Mois | S25: Année | W25: DATES | X25: NOMBRE | Y25: DATES | Z25: NOMBRE | AA25: DATES | AB25: NOMBRE | AC25: DATES | AD25: NOMBRE | AE25: DATES | AF25: NOMBRE | AJ25: Date saillie programmée | AQ25: Nbre agnelage possible/an | AT25: Réponse | AU25: 1 | AV25: 2 | AW25: 3 | AX25: 4 | AY25: 5 | AZ25: 6 | BA25: 7 | BB25: 8
C27: =AT27 -> 1 | D27: =F6/F7 -> 25 | E27: =AJ27 -> 2020-10-01 | F27: =E27+35 -> 2020-11-05 | H27: =E27+145 -> 2021-02-23 | I27: 2021-03-30 | K27: =VLOOKUP(R27,$S$67:$T$78,2,FALSE) -> 0.85 | L27: =D27*K27 -> 21.25 | M27: 2.75 | N27: 0.23 | O27: =$AN$14 -> 3.4 | P27: =ROUND((L27*M27)-(N27*(L27*M27))-O27,0) -> 42 | R27: =MONTH(E27) -> 10 | S27: =YEAR(H27) -> 2021 | W27: =(H27+I27)/2+W22 -> 2021-05-11T12:00:00 | X27: =ROUND(P27*W$20,0) -> 2 | Y27: =(H27+I27)/2+Y22 -> 2021-06-10T12:00:00 | Z27: =ROUND(P27*Y$20,0) -> 2 | AA27: =(H27+I27)/2+AA22 -> 2021-09-08T12:00:00 | AB27: =ROUND(P27*AA$20,0) -> 32 | AC27: =(H27+I27)/2+AC22 -> 2021-09-08T12:00:00 | AD27: =ROUND(P27*AC$20,0) -> 6 | AE27: =(H27+I27)/2+AE22 -> 2022-01-06T12:00:00 | AF27: =(P27*AE$20) -> 0.3684210526 | AJ27: =F9 -> 2020-10-01 | AQ27: =IF(AND(H27>=$AQ$20,H27<=$AQ$21),1,0) -> 1 | AT27: =SUM(AU27:BB27) -> 1 | AU27: =IF($AU$23=1,1,0) -> 0 | AV27: =IF($AV$23=1,1,0) -> 0 | AW27: =IF($AW$23=1,1,0) -> 0 | AX27: =IF($AX$23=1,1,0) -> 1 | AY27: =IF($AY$23=1,1,0) -> 0 | AZ27: =IF($AZ$23=1,1,0) -> 0 | BA27: =IF($BA$23=1,1,0) -> 0 | BB27: =IF($BB$23=1,1,0) -> 0
C28: =AT28 -> 2 | D28: =F6/F7 -> 25 | E28: =AJ28 -> 2020-11-30 | F28: 2021-01-04 | H28: 2021-04-24 | I28: 2021-05-29 | K28: 0.85 | L28: 21.25 | M28: 2.75 | N28: 0.23 | O28: =$AN$14 -> 3.4 | P28: =ROUND((L28*M28)-(N28*(L28*M28))-O28,0) -> 42 | R28: =MONTH(E28) -> 11 | S28: =YEAR(H28) -> 2021 | W28: =(H28+I28)/2+W22 -> 2021-07-10T12:00:00 | X28: 2 | Y28: =(H28+I28)/2+Y22 -> 2021-08-09T12:00:00 | Z28: 2 | AA28: =(H28+I28)/2+AA22 -> 2021-11-07T12:00:00 | AB28: 32 | AC28: =(H28+I28)/2+AC22 -> 2021-11-07T12:00:00 | AD28: 6 | AE28: =(H28+I28)/2+AE22 -> 2022-03-07T12:00:00 | AF28: 0.3684210526 | AJ28: =+AJ27+$AN$7 -> 2020-11-30 | AQ28: =IF(AND(H28>=$AQ$20,H28<=$AQ$21),1,0) -> 1 | AT28: =SUM(AU28:BB28) -> 2 | AU28: =IF($AU$23=1,1,0) -> 0 | AV28: =IF($AV$23=1,2,0) -> 0 | AW28: =IF($AW$23=1,2,0) -> 0 | AX28: =IF($AX$23=1,2,0) -> 2 | AY28: =IF($AY$23=1,2,0) -> 0 | AZ28: =IF($AZ$23=1,2,0) -> 0 | BA28: =IF($BA$23=1,2,0) -> 0 | BB28: =IF($BB$23=1,2,0) -> 0
C29: 3 | D29: =F6/F7 -> 25 | E29: =AJ29 -> 2021-01-29 | F29: 2021-03-05 | H29: 2021-06-23 | I29: 2021-07-28 | K29: 0.85 | L29: 21.25 | M29: 2.75 | N29: 0.23 | O29: 3.4 | P29: =ROUND((L29*M29)-(N29*(L29*M29))-O29,0) -> 42 | R29: 1 | S29: 2021 | W29: =(H29+I29)/2+W22 -> 2021-09-08T12:00:00 | X29: 2 | Y29: =(H29+I29)/2+Y22 -> 2021-10-08T12:00:00 | Z29: 2 | AA29: =(H29+I29)/2+AA22 -> 2022-01-06T12:00:00 | AB29: 32 | AC29: =(H29+I29)/2+AC22 -> 2022-01-06T12:00:00 | AD29: 6 | AE29: =(H29+I29)/2+AE22 -> 2022-05-06T12:00:00 | AF29: 0.3684210526 | AJ29: =+AJ28+$AN$7 -> 2021-01-29 | AQ29: 1 | AT29: 3 | AU29: 0 | AV29: =IF($AV$23=1,1,0) -> 0 | AW29: =IF($AW$23=1,3,0) -> 0 | AX29: =IF($AX$23=1,3,0) -> 3 | AY29: =IF($AY$23=1,3,0) -> 0 | AZ29: =IF($AZ$23=1,3,0) -> 0 | BA29: =IF($BA$23=1,3,0) -> 0 | BB29: =IF($BB$23=1,3,0) -> 0
C30: 4 | D30: =F6/F7 -> 25 | E30: 2021-03-30 | F30: 2021-05-04 | H30: =E30+145 -> 2021-08-22 | I30: 2021-09-26 | K30: 0.7 | L30: 17.5 | M30: 2.75 | N30: 0.23 | O30: 3.4 | P30: =ROUND((L30*M30)-(N30*(L30*M30))-O30,0) -> 34 | R30: 3 | S30: 2021 | W30: =(H30+I30)/2+W22 -> 2021-11-07T12:00:00 | X30: 2 | Y30: =(H30+I30)/2+Y22 -> 2021-12-07T12:00:00 | Z30: 2 | AA30: =(H30+I30)/2+AA22 -> 2022-03-07T12:00:00 | AB30: 26 | AC30: =(H30+I30)/2+AC22 -> 2022-03-07T12:00:00 | AD30: 4 | AE30: =(H30+I30)/2+AE22 -> 2022-07-05T12:00:00 | AF30: 0.298245614 | AJ30: 2021-03-30 | AQ30: 1 | AT30: 4 | AU30: 0 | AV30: =IF($AV$23=1,2,0) -> 0 | AW30: =IF($AW$23=1,1,0) -> 0 | AX30: =IF($AX$23=1,4,0) -> 4 | AY30: =IF($AY$23=1,4,0) -> 0 | AZ30: =IF($AZ$23=1,4,0) -> 0 | BA30: =IF($BA$23=1,4,0) -> 0 | BB30: =IF($BB$23=1,4,0) -> 0
C31: 1 | D31: =F6/F7 -> 25 | E31: =AJ31 -> 2021-05-29 | F31: 2021-07-03 | H31: 2021-10-21 | I31: 2021-11-25 | K31: 0.7 | L31: 17.5 | M31: 2.75 | N31: 0.23 | O31: 3.4 | P31: 34 | R31: 5 | S31: 2021 | W31: =(H31+I31)/2+W22 -> 2022-01-06T12:00:00 | X31: 2 | Y31: =(H31+I31)/2+Y22 -> 2022-02-05T12:00:00 | Z31: 2 | AA31: =(H31+I31)/2+AA22 -> 2022-05-06T12:00:00 | AB31: 26 | AC31: =(H31+I31)/2+AC22 -> 2022-05-06T12:00:00 | AD31: 4 | AE31: =(H31+I31)/2+AE22 -> 2022-09-03T12:00:00 | AF31: 0.298245614 | AJ31: 2021-05-29 | AQ31: 1 | AT31: 1 | AU31: 0 | AV31: =IF($AV$23=1,1,0) -> 0 | AW31: =IF($AW$23=1,2,0) -> 0 | AX31: =IF($AX$23=1,1,0) -> 1 | AY31: =IF($AY$23=1,5,0) -> 0 | AZ31: =IF($AZ$23=1,5,0) -> 0 | BA31: =IF($BA$23=1,5,0) -> 0 | BB31: =IF($BB$23=1,5,0) -> 0
C32: 2 | D32: =F6/F7 -> 25 | E32: 2021-07-28 | F32: 2021-09-01 | H32: 2021-12-20 | I32: 2022-01-24 | K32: 0.7 | L32: 17.5 | M32: 2.75 | N32: 0.23 | O32: 3.4 | P32: 34 | R32: 7 | S32: 2021 | W32: =(H32+I32)/2+W22 -> 2022-03-07T12:00:00 | X32: 2 | Y32: =(H32+I32)/2+Y22 -> 2022-04-06T12:00:00 | Z32: 2 | AA32: =(H32+I32)/2+AA22 -> 2022-07-05T12:00:00 | AB32: 26 | AC32: =(H32+I32)/2+AC22 -> 2022-07-05T12:00:00 | AD32: 4 | AE32: =(H32+I32)/2+AE22 -> 2022-11-02T12:00:00 | AF32: 0.298245614 | AJ32: 2021-07-28 | AQ32: 1 | AT32: 2 | AU32: 0 | AV32: =IF($AV$23=1,2,0) -> 0 | AW32: =IF($AW$23=1,3,0) -> 0 | AX32: =IF($AX$23=1,2,0) -> 2 | AY32: =IF($AY$23=1,1,0) -> 0 | AZ32: =IF($AZ$23=1,6,0) -> 0 | BA32: =IF($BA$23=1,6,0) -> 0 | BB32: =IF($BB$23=1,6,0) -> 0
C33: 3 | D33: =F6/F7 -> 25 | E33: 2021-09-26 | F33: 2021-10-31 | H33: 2022-02-18 | I33: 2022-03-25 | K33: 0.85 | L33: 21.25 | M33: 2.75 | N33: 0.23 | O33: 3.4 | P33: 42 | R33: 9 | S33: 2022 | W33: =(H33+I33)/2+W22 -> 2022-05-06T12:00:00 | X33: 2 | Y33: =(H33+I33)/2+Y22 -> 2022-06-05T12:00:00 | Z33: 2 | AA33: =(H33+I33)/2+AA22 -> 2022-09-03T12:00:00 | AB33: 32 | AC33: =(H33+I33)/2+AC22 -> 2022-09-03T12:00:00 | AD33: 6 | AE33: =(H33+I33)/2+AE22 -> 2023-01-01T12:00:00 | AF33: 0.3684210526 | AJ33: 2021-09-26 | AQ33: 0 | AT33: 3 | AU33: 0 | AV33: =IF($AV$23=1,1,0) -> 0 | AW33: =IF($AW$23=1,1,0) -> 0 | AX33: =IF($AX$23=1,3,0) -> 3 | AY33: =IF($AY$23=1,2,0) -> 0 | AZ33: =IF($AZ$23=1,1,0) -> 0 | BA33: =IF($BA$23=1,7,0) -> 0 | BB33: =IF($BB$23=1,7,0) -> 0
C34: 4 | D34: =F6/F7 -> 25 | E34: 2021-11-25 | F34: 2021-12-30 | H34: 2022-04-19 | I34: 2022-05-24 | K34: 0.85 | L34: 21.25 | M34: 2.75 | N34: 0.23 | O34: 3.4 | P34: 42 | R34: 11 | S34: 2022 | W34: =(H34+I34)/2+W22 -> 2022-07-05T12:00:00 | X34: 2 | Y34: =(H34+I34)/2+Y22 -> 2022-08-04T12:00:00 | Z34: 2 | AA34: =(H34+I34)/2+AA22 -> 2022-11-02T12:00:00 | AB34: 32 | AC34: =(H34+I34)/2+AC22 -> 2022-11-02T12:00:00 | AD34: 6 | AE34: =(H34+I34)/2+AE22 -> 2023-03-02T12:00:00 | AF34: 0.3684210526 | AJ34: 2021-11-25 | AQ34: 0 | AT34: 4 | AU34: 0 | AV34: =IF($AV$23=1,2,0) -> 0 | AW34: =IF($AW$23=1,2,0) -> 0 | AX34: =IF($AX$23=1,4,0) -> 4 | AY34: =IF($AY$23=1,3,0) -> 0 | AZ34: =IF($AZ$23=1,2,0) -> 0 | BA34: =IF($BA$23=1,1,0) -> 0 | BB34: =IF($BB$23=1,8,0) -> 0
C35: 1 | D35: =F6/F7 -> 25 | E35: 2022-01-24 | F35: 2022-02-28 | H35: 2022-06-18 | I35: 2022-07-23 | K35: 0.85 | L35: 21.25 | M35: 2.75 | N35: 0.23 | O35: 3.4 | P35: 42 | R35: 1 | S35: 2022 | W35: =(H35+I35)/2+W22 -> 2022-09-03T12:00:00 | X35: 2 | Y35: =(H35+I35)/2+Y22 -> 2022-10-03T12:00:00 | Z35: 2 | AA35: =(H35+I35)/2+AA22 -> 2023-01-01T12:00:00 | AB35: 32 | AC35: =(H35+I35)/2+AC22 -> 2023-01-01T12:00:00 | AD35: 6 | AE35: =(H35+I35)/2+AE22 -> 2023-05-01T12:00:00 | AF35: 0.3684210526 | AJ35: 2022-01-24 | AQ35: 0 | AT35: 1 | AU35: 0 | AV35: =IF($AV$23=1,1,0) -> 0 | AW35: =IF($AW$23=1,3,0) -> 0 | AX35: =IF($AX$23=1,1,0) -> 1 | AY35: =IF($AY$23=1,4,0) -> 0 | AZ35: =IF($AZ$23=1,3,0) -> 0 | BA35: =IF($BA$23=1,2,0) -> 0 | BB35: =IF($BB$23=1,1,0) -> 0
C36: 2 | D36: =F6/F7 -> 25 | E36: 2022-03-25 | F36: 2022-04-29 | H36: =E36+145 -> 2022-08-17 | I36: 2022-09-21 | K36: 0.7 | L36: =D36*K36 -> 17.5 | M36: 2.75 | N36: 0.23 | O36: 3.4 | P36: 34 | R36: 3 | S36: 2022 | W36: =(H36+I36)/2+W22 -> 2022-11-02T12:00:00 | X36: 2 | Y36: =(H36+I36)/2+Y22 -> 2022-12-02T12:00:00 | Z36: 2 | AA36: =(H36+I36)/2+AA22 -> 2023-03-02T12:00:00 | AB36: 26 | AC36: =(H36+I36)/2+AC22 -> 2023-03-02T12:00:00 | AD36: 4 | AE36: =(H36+I36)/2+AE22 -> 2023-06-30T12:00:00 | AF36: 0.298245614 | AJ36: 2022-03-25 | AQ36: 0 | AT36: 2 | AU36: 0 | AV36: =IF($AV$23=1,2,0) -> 0 | AW36: =IF($AW$23=1,1,0) -> 0 | AX36: =IF($AX$23=1,2,0) -> 2 | AY36: =IF($AY$23=1,5,0) -> 0 | AZ36: =IF($AZ$23=1,4,0) -> 0 | BA36: =IF($BA$23=1,3,0) -> 0 | BB36: =IF($BB$23=1,2,0) -> 0
C37: 3 | D37: =F6/F7 -> 25 | E37: 2022-05-24 | F37: 2022-06-28 | H37: 2022-10-16 | I37: 2022-11-20 | K37: 0.7 | L37: =D37*K37 -> 17.5 | M37: 2.75 | N37: 0.23 | O37: 3.4 | P37: 34 | R37: 5 | S37: 2022 | W37: =(H37+I37)/2+W22 -> 2023-01-01T12:00:00 | X37: 2 | Y37: =(H37+I37)/2+Y22 -> 2023-01-31T12:00:00 | Z37: 2 | AA37: =(H37+I37)/2+AA22 -> 2023-05-01T12:00:00 | AB37: 26 | AC37: =(H37+I37)/2+AC22 -> 2023-05-01T12:00:00 | AD37: 4 | AE37: =(H37+I37)/2+AE22 -> 2023-08-29T12:00:00 | AF37: 0.298245614 | AJ37: 2022-05-24 | AQ37: 0 | AT37: 3 | AU37: 0 | AV37: =IF($AV$23=1,1,0) -> 0 | AW37: =IF($AW$23=1,2,0) -> 0 | AX37: =IF($AX$23=1,3,0) -> 3 | AY37: =IF($AY$23=1,1,0) -> 0 | AZ37: =IF($AZ$23=1,5,0) -> 0 | BA37: =IF($BA$23=1,4,0) -> 0 | BB37: =IF($BB$23=1,3,0) -> 0
C38: 4 | D38: =F6/F7 -> 25 | E38: 2022-07-23 | F38: 2022-08-27 | H38: 2022-12-15 | I38: 2023-01-19 | K38: 0.7 | L38: =D38*K38 -> 17.5 | M38: 2.75 | N38: 0.23 | O38: 3.4 | P38: 34 | R38: 7 | S38: 2022 | W38: =(H38+I38)/2+W22 -> 2023-03-02T12:00:00 | X38: 2 | Y38: =(H38+I38)/2+Y22 -> 2023-04-01T12:00:00 | Z38: 2 | AA38: =(H38+I38)/2+AA22 -> 2023-06-30T12:00:00 | AB38: 26 | AC38: =(H38+I38)/2+AC22 -> 2023-06-30T12:00:00 | AD38: 4 | AE38: =(H38+I38)/2+AE22 -> 2023-10-28T12:00:00 | AF38: 0.298245614 | AJ38: 2022-07-23 | AQ38: 0 | AT38: 4 | AU38: 0 | AV38: =IF($AV$23=1,2,0) -> 0 | AW38: =IF($AW$23=1,3,0) -> 0 | AX38: =IF($AX$23=1,4,0) -> 4 | AY38: =IF($AY$23=1,2,0) -> 0 | AZ38: =IF($AZ$23=1,6,0) -> 0 | BA38: =IF($BA$23=1,5,0) -> 0 | BB38: =IF($BB$23=1,4,0) -> 0
C39: 1 | D39: =F6/F7 -> 25 | E39: 2022-09-21 | F39: 2022-10-26 | H39: =E39+145 -> 2023-02-13 | I39: =F39+145 -> 2023-03-20 | K39: 0.85 | L39: =D39*K39 -> 21.25 | M39: 2.75 | N39: 0.23 | O39: 3.4 | P39: 42 | R39: 9 | S39: 2023 | W39: =(H39+I39)/2+W22 -> 2023-05-01T12:00:00 | X39: 2 | Y39: =(H39+I39)/2+Y22 -> 2023-05-31T12:00:00 | Z39: 2 | AA39: =(H39+I39)/2+AA22 -> 2023-08-29T12:00:00 | AB39: 32 | AC39: =(H39+I39)/2+AC22 -> 2023-08-29T12:00:00 | AD39: 6 | AE39: =(H39+I39)/2+AE22 -> 2023-12-27T12:00:00 | AF39: 0.3684210526 | AJ39: 2022-09-21 | AQ39: 0 | AT39: 1 | AU39: 0 | AV39: =IF($AV$23=1,1,0) -> 0 | AW39: =IF($AW$23=1,1,0) -> 0 | AX39: =IF($AX$23=1,1,0) -> 1 | AY39: =IF($AY$23=1,3,0) -> 0 | AZ39: =IF($AZ$23=1,1,0) -> 0 | BA39: =IF($BA$23=1,6,0) -> 0 | BB39: =IF($BB$23=1,5,0) -> 0
C40: 2 | D40: =F6/F7 -> 25 | E40: 2022-11-20 | F40: 2022-12-25 | H40: 2023-04-14 | I40: 2023-05-19 | K40: 0.85 | L40: 21.25 | M40: 2.75 | N40: 0.23 | O40: 3.4 | P40: 42 | R40: 11 | S40: 2023 | W40: =(H40+I40)/2+W22 -> 2023-06-30T12:00:00 | X40: 2 | Y40: =(H40+I40)/2+Y22 -> 2023-07-30T12:00:00 | Z40: 2 | AA40: =(H40+I40)/2+AA22 -> 2023-10-28T12:00:00 | AB40: 32 | AC40: =(H40+I40)/2+AC22 -> 2023-10-28T12:00:00 | AD40: 6 | AE40: =(H40+I40)/2+AE22 -> 2024-02-25T12:00:00 | AF40: 0.3684210526 | AJ40: 2022-11-20 | AQ40: 0 | AT40: 2 | AU40: 0 | AV40: =IF($AV$23=1,2,0) -> 0 | AW40: =IF($AW$23=1,2,0) -> 0 | AX40: =IF($AX$23=1,2,0) -> 2 | AY40: =IF($AY$23=1,4,0) -> 0 | AZ40: =IF($AZ$23=1,2,0) -> 0 | BA40: =IF($BA$23=1,7,0) -> 0 | BB40: =IF($BB$23=1,6,0) -> 0
C41: 3 | D41: =F6/F7 -> 25 | E41: 2023-01-19 | F41: 2023-02-23 | H41: 2023-06-13 | I41: 2023-07-18 | K41: 0.85 | L41: 21.25 | M41: 2.75 | N41: 0.23 | O41: 3.4 | P41: 42 | R41: 1 | S41: 2023 | W41: =(H41+I41)/2+W22 -> 2023-08-29T12:00:00 | X41: 2 | Y41: =(H41+I41)/2+Y22 -> 2023-09-28T12:00:00 | Z41: 2 | AA41: =(H41+I41)/2+AA22 -> 2023-12-27T12:00:00 | AB41: 32 | AC41: =(H41+I41)/2+AC22 -> 2023-12-27T12:00:00 | AD41: 6 | AE41: =(H41+I41)/2+AE22 -> 2024-04-25T12:00:00 | AF41: 0.3684210526 | AJ41: 2023-01-19 | AQ41: 0 | AT41: 3 | AU41: 0 | AV41: =IF($AV$23=1,1,0) -> 0 | AW41: =IF($AW$23=1,3,0) -> 0 | AX41: =IF($AX$23=1,3,0) -> 3 | AY41: =IF($AY$23=1,5,0) -> 0 | AZ41: =IF($AZ$23=1,3,0) -> 0 | BA41: =IF($BA$23=1,1,0) -> 0 | BB41: =IF($BB$23=1,7,0) -> 0
C42: 4 | D42: =F6/F7 -> 25 | E42: 2023-03-20 | F42: 2023-04-24 | H42: 2023-08-12 | I42: 2023-09-16 | K42: 0.7 | L42: =D42*K42 -> 17.5 | M42: 2.75 | N42: 0.23 | O42: 3.4 | P42: 34 | R42: 3 | S42: 2023 | W42: =(H42+I42)/2+W22 -> 2023-10-28T12:00:00 | X42: 2 | Y42: =(H42+I42)/2+Y22 -> 2023-11-27T12:00:00 | Z42: 2 | AA42: =(H42+I42)/2+AA22 -> 2024-02-25T12:00:00 | AB42: 26 | AC42: =(H42+I42)/2+AC22 -> 2024-02-25T12:00:00 | AD42: 4 | AE42: =(H42+I42)/2+AE22 -> 2024-06-24T12:00:00 | AF42: 0.298245614 | AJ42: 2023-03-20 | AQ42: 0 | AT42: 4 | AU42: 0 | AV42: =IF($AV$23=1,2,0) -> 0 | AW42: =IF($AW$23=1,1,0) -> 0 | AX42: =IF($AX$23=1,4,0) -> 4 | AY42: =IF($AY$23=1,1,0) -> 0 | AZ42: =IF($AZ$23=1,4,0) -> 0 | BA42: =IF($BA$23=1,2,0) -> 0 | BB42: =IF($BB$23=1,8,0) -> 0
C43: 1 | D43: =F6/F7 -> 25 | E43: 2023-05-19 | F43: 2023-06-23 | H43: 2023-10-11 | I43: 2023-11-15 | K43: 0.7 | L43: 17.5 | M43: 2.75 | N43: 0.23 | O43: 3.4 | P43: 34 | R43: 5 | S43: 2023 | W43: =(H43+I43)/2+W22 -> 2023-12-27T12:00:00 | X43: 2 | Y43: =(H43+I43)/2+Y22 -> 2024-01-26T12:00:00 | Z43: 2 | AA43: =(H43+I43)/2+AA22 -> 2024-04-25T12:00:00 | AB43: 26 | AC43: =(H43+I43)/2+AC22 -> 2024-04-25T12:00:00 | AD43: 4 | AE43: =(H43+I43)/2+AE22 -> 2024-08-23T12:00:00 | AF43: 0.298245614 | AJ43: 2023-05-19 | AQ43: 0 | AT43: 1 | AU43: 0 | AV43: =IF($AV$23=1,1,0) -> 0 | AW43: =IF($AW$23=1,2,0) -> 0 | AX43: =IF($AX$23=1,1,0) -> 1 | AY43: =IF($AY$23=1,2,0) -> 0 | AZ43: =IF($AZ$23=1,5,0) -> 0 | BA43: =IF($BA$23=1,3,0) -> 0 | BB43: =IF($BB$23=1,1,0) -> 0
C44: 2 | D44: =F6/F7 -> 25 | E44: 2023-07-18 | F44: =E44+35 -> 2023-08-22 | H44: =E44+145 -> 2023-12-10 | I44: =F44+145 -> 2024-01-14 | K44: 0.7 | L44: 17.5 | M44: 2.75 | N44: 0.23 | O44: 3.4 | P44: 34 | R44: 7 | S44: 2023 | W44: =(H44+I44)/2+W22 -> 2024-02-25T12:00:00 | X44: 2 | Y44: =(H44+I44)/2+Y22 -> 2024-03-26T12:00:00 | Z44: 2 | AA44: =(H44+I44)/2+AA22 -> 2024-06-24T12:00:00 | AB44: 26 | AC44: =(H44+I44)/2+AC22 -> 2024-06-24T12:00:00 | AD44: 4 | AE44: =(H44+I44)/2+AE22 -> 2024-10-22T12:00:00 | AF44: 0.298245614 | AJ44: 2023-07-18 | AQ44: 0 | AT44: 2 | AU44: 0 | AV44: =IF($AV$23=1,2,0) -> 0 | AW44: =IF($AW$23=1,3,0) -> 0 | AX44: =IF($AX$23=1,2,0) -> 2 | AY44: =IF($AY$23=1,3,0) -> 0 | AZ44: =IF($AZ$23=1,6,0) -> 0 | BA44: =IF($BA$23=1,4,0) -> 0 | BB44: =IF($BB$23=1,2,0) -> 0
C45: 3 | D45: =F6/F7 -> 25 | E45: 2023-09-16 | F45: 2023-10-21 | H45: 2024-02-08 | I45: 2024-03-14 | K45: 0.85 | L45: 21.25 | M45: 2.75 | N45: 0.23 | O45: 3.4 | P45: 42 | R45: 9 | S45: 2024 | W45: =(H45+I45)/2+W22 -> 2024-04-25T12:00:00 | X45: 2 | Y45: =(H45+I45)/2+Y22 -> 2024-05-25T12:00:00 | Z45: 2 | AA45: =(H45+I45)/2+AA22 -> 2024-08-23T12:00:00 | AB45: 32 | AC45: =(H45+I45)/2+AC22 -> 2024-08-23T12:00:00 | AD45: 6 | AE45: =(H45+I45)/2+AE22 -> 2024-12-21T12:00:00 | AF45: 0.3684210526 | AJ45: 2023-09-16 | AQ45: 0 | AT45: 3 | AU45: 0 | AV45: =IF($AV$23=1,1,0) -> 0 | AW45: =IF($AW$23=1,1,0) -> 0 | AX45: =IF($AX$23=1,3,0) -> 3 | AY45: =IF($AY$23=1,4,0) -> 0 | AZ45: =IF($AZ$23=1,1,0) -> 0 | BA45: =IF($BA$23=1,5,0) -> 0 | BB45: =IF($BB$23=1,3,0) -> 0
C46: 4 | D46: =F6/F7 -> 25 | E46: 2023-11-15 | F46: 2023-12-20 | H46: 2024-04-08 | I46: 2024-05-13 | K46: 0.85 | L46: 21.25 | M46: 2.75 | N46: 0.23 | O46: 3.4 | P46: 42 | R46: 11 | S46: 2024 | W46: =(H46+I46)/2+W22 -> 2024-06-24T12:00:00 | X46: 2 | Y46: =(H46+I46)/2+Y22 -> 2024-07-24T12:00:00 | Z46: 2 | AA46: =(H46+I46)/2+AA22 -> 2024-10-22T12:00:00 | AB46: 32 | AC46: =(H46+I46)/2+AC22 -> 2024-10-22T12:00:00 | AD46: 6 | AE46: =(H46+I46)/2+AE22 -> 2025-02-19T12:00:00 | AF46: 0.3684210526 | AJ46: 2023-11-15 | AQ46: 0 | AT46: 4 | AU46: 0 | AV46: =IF($AV$23=1,2,0) -> 0 | AW46: =IF($AW$23=1,2,0) -> 0 | AX46: =IF($AX$23=1,4,0) -> 4 | AY46: =IF($AY$23=1,5,0) -> 0 | AZ46: =IF($AZ$23=1,2,0) -> 0 | BA46: =IF($BA$23=1,6,0) -> 0 | BB46: =IF($BB$23=1,4,0) -> 0
C47: 1 | D47: =F6/F7 -> 25 | E47: 2024-01-14 | F47: 2024-02-18 | H47: 2024-06-07 | I47: 2024-07-12 | K47: 0.85 | L47: 21.25 | M47: 2.75 | N47: 0.23 | O47: 3.4 | P47: 42 | R47: 1 | S47: 2024 | W47: =(H47+I47)/2+W22 -> 2024-08-23T12:00:00 | X47: 2 | Y47: =(H47+I47)/2+Y22 -> 2024-09-22T12:00:00 | Z47: 2 | AA47: =(H47+I47)/2+AA22 -> 2024-12-21T12:00:00 | AB47: 32 | AC47: =(H47+I47)/2+AC22 -> 2024-12-21T12:00:00 | AD47: 6 | AE47: =(H47+I47)/2+AE22 -> 2025-04-20T12:00:00 | AF47: 0.3684210526 | AJ47: 2024-01-14 | AQ47: 0 | AT47: 1 | AU47: 0 | AV47: =IF($AV$23=1,1,0) -> 0 | AW47: =IF($AW$23=1,3,0) -> 0 | AX47: =IF($AX$23=1,1,0) -> 1 | AY47: =IF($AY$23=1,1,0) -> 0 | AZ47: =IF($AZ$23=1,3,0) -> 0 | BA47: =IF($BA$23=1,7,0) -> 0 | BB47: =IF($BB$23=1,5,0) -> 0
C48: 2 | D48: =F6/F7 -> 25 | E48: 2024-03-14 | F48: 2024-04-18 | H48: =E48+145 -> 2024-08-06 | I48: =F48+145 -> 2024-09-10 | K48: 0.7 | L48: 17.5 | M48: 2.75 | N48: 0.23 | O48: 3.4 | P48: 34 | R48: 3 | S48: 2024 | W48: =(H48+I48)/2+W22 -> 2024-10-22T12:00:00 | X48: 2 | Y48: =(H48+I48)/2+Y22 -> 2024-11-21T12:00:00 | Z48: 2 | AA48: =(H48+I48)/2+AA22 -> 2025-02-19T12:00:00 | AB48: 26 | AC48: =(H48+I48)/2+AC22 -> 2025-02-19T12:00:00 | AD48: 4 | AE48: =(H48+I48)/2+AE22 -> 2025-06-19T12:00:00 | AF48: 0.298245614 | AJ48: 2024-03-14 | AQ48: 0 | AT48: 2 | AU48: 0 | AV48: =IF($AV$23=1,2,0) -> 0 | AW48: =IF($AW$23=1,1,0) -> 0 | AX48: =IF($AX$23=1,2,0) -> 2 | AY48: =IF($AY$23=1,2,0) -> 0 | AZ48: =IF($AZ$23=1,4,0) -> 0 | BA48: =IF($BA$23=1,1,0) -> 0 | BB48: =IF($BB$23=1,6,0) -> 0
C49: 3 | D49: =F6/F7 -> 25 | E49: 2024-05-13 | F49: 2024-06-17 | H49: 2024-10-05 | I49: 2024-11-09 | K49: 0.7 | L49: 17.5 | M49: 2.75 | N49: 0.23 | O49: 3.4 | P49: 34 | R49: 5 | S49: 2024 | W49: =(H49+I49)/2+W22 -> 2024-12-21T12:00:00 | X49: 2 | Y49: =(H49+I49)/2+Y22 -> 2025-01-20T12:00:00 | Z49: 2 | AA49: =(H49+I49)/2+AA22 -> 2025-04-20T12:00:00 | AB49: 26 | AC49: =(H49+I49)/2+AC22 -> 2025-04-20T12:00:00 | AD49: 4 | AE49: =(H49+I49)/2+AE22 -> 2025-08-18T12:00:00 | AF49: 0.298245614 | AJ49: 2024-05-13 | AQ49: 0 | AT49: 3 | AU49: 0 | AV49: =IF($AV$23=1,1,0) -> 0 | AW49: =IF($AW$23=1,2,0) -> 0 | AX49: =IF($AX$23=1,3,0) -> 3 | AY49: =IF($AY$23=1,3,0) -> 0 | AZ49: =IF($AZ$23=1,5,0) -> 0 | BA49: =IF($BA$23=1,2,0) -> 0 | BB49: =IF($BB$23=1,7,0) -> 0
C50: 4 | D50: =F6/F7 -> 25 | E50: 2024-07-12 | F50: 2024-08-16 | H50: 2024-12-04 | I50: 2025-01-08 | K50: 0.7 | L50: 17.5 | M50: 2.75 | N50: 0.23 | O50: 3.4 | P50: 34 | R50: 7 | S50: 2024 | W50: =(H50+I50)/2+W22 -> 2025-02-19T12:00:00 | X50: 2 | Y50: =(H50+I50)/2+Y22 -> 2025-03-21T12:00:00 | Z50: 2 | AA50: =(H50+I50)/2+AA22 -> 2025-06-19T12:00:00 | AB50: 26 | AC50: =(H50+I50)/2+AC22 -> 2025-06-19T12:00:00 | AD50: 4 | AE50: =(H50+I50)/2+AE22 -> 2025-10-17T12:00:00 | AF50: 0.298245614 | AJ50: 2024-07-12 | AQ50: 0 | AT50: 4 | AU50: 0 | AV50: =IF($AV$23=1,2,0) -> 0 | AW50: =IF($AW$23=1,3,0) -> 0 | AX50: =IF($AX$23=1,4,0) -> 4 | AY50: =IF($AY$23=1,4,0) -> 0 | AZ50: =IF($AZ$23=1,6,0) -> 0 | BA50: =IF($BA$23=1,3,0) -> 0 | BB50: =IF($BB$23=1,8,0) -> 0
C53: Prévisionnel des performances annuelles | W53: Prévision des ventes totales par année
E56: Rythme d'agnelage | H56: Prévisionnel d'agneaux réchappés excluant le remplacement par année | L56: Kg d'agneaux vendus (incluant les agnelles et béliers) | O56: Kg d'agneaux vendus par brebis (incluant les agnelles et béliers) | W56: =W21 -> AGNEAUX LAIT | Y56: =Y21 -> AGNEAUX LÉGERS | AA56: =AA21 -> AGNEAUX LOURDS | AC56: =AC21 -> AGNELLES | AE56: =AE21 -> BÉLIERS
D58: =DATE(YEAR(I27),1,1) -> 2021-01-01 | E58: =12/$F$8*((IF(AND(I27>=$D$58,I27<$D$59),K27*D27,0))+(IF(AND(I28>=$D$58,I28<$D$59),K28*D28,0))+(IF(AND(I29>=$D$58,I29<$D$59),K29*D29,0))+(IF(AND(I30>=$D$58,I30<$D$59),K30*D30,0))+(IF(AND(I31>=$D$58,I31<$D$59),K31*D31,0))+(IF(AND(I32>=$D$58,I32<$D$59),K32*D32,0))+(IF(AND(I33>=$D$58,I33<$D$59),K33*D33,0))+(IF(AND(I34>=$D$58,I34<$D$59),K34*D34,0))+(IF(AND(I35>=$D$58,I35<$D$59),K35*D35,0))+(IF(AND(I36>=$D$58,I36<$D$59),K36*D36,0))+(IF(AND(I37>=$D$58,I37<$D$59),K37*D37,0))+(IF(AND(I38>=$D$58,I38<$D$59),K38*D38,0))+(IF(AND(I39>=$D$58,I39<$D$59),K39*D39,0))+(IF(AND(I40>=$D$58,I40<$D$59),K40*D40,0))+(IF(AND(I41>=$D$58,I41<$D$59),K41*D41,0))+(IF(AND(I42>=$D$58,I42<$D$59),K42*D42,0))+(IF(AND(I43>=$D$58,I43<$D$59),K43*D43,0))+(IF(AND(I44>=$D$58,I44<$D$59),K44*D44,0))+(IF(AND(I45>=$D$58,I45<$D$59),K45*D45,0))+(IF(AND(I46>=$D$58,I46<$D$59),K46*D46,0))+(IF(AND(I47>=$D$58,I47<$D$59),K47*D47,0))+(IF(AND(I48>=$D$58,I48<$D$59),K48*D48,0))+(IF(AND(I49>=$D$58,I49<$D$59),K49*D49,0))+(IF(AND(I50>=$D$58,I50<$D$59),K50*D50,0)))/((IF(AND(I27>=$D$58,I27<$D$59),D27,0))+(IF(AND(I28>=$D$58,I28<$D$59),D28,0))+(IF(AND(I29>=$D$58,I29<$D$59),D29,0))+(IF(AND(I30>=$D$58,I30<$D$59),D30,0))+(IF(AND(I31>=$D$58,I31<$D$59),D31,0))+(IF(AND(I32>=$D$58,I32<$D$59),D32,0))+(IF(AND(I33>=$D$58,I33<$D$59),D33,0))+(IF(AND(I34>=$D$58,I34<$D$59),D34,0))+(IF(AND(I35>=$D$58,I35<$D$59),D35,0))+(IF(AND(I36>=$D$58,I36<$D$59),D36,0))+(IF(AND(I37>=$D$58,I37<$D$59),D37,0))+(IF(AND(I38>=$D$58,I38<$D$59),D38,0))+(IF(AND(I39>=$D$58,I39<$D$59),D39,0))+(IF(AND(I40>=$D$58,I40<$D$59),D40,0))+(IF(AND(I41>=$D$58,I41<$D$59),D41,0))+(IF(AND(I42>=$D$58,I42<$D$59),D42,0))+(IF(AND(I43>=$D$58,I43<$D$59),D43,0))+(IF(AND(I44>=$D$58,I44<$D$59),D44,0))+(IF(AND(I45>=$D$58,I45<$D$59),D45,0))+(IF(AND(I46>=$D$58,I46<$D$59),D46,0))+(IF(AND(I47>=$D$58,I47<$D$59),D47,0))+(IF(AND(I48>=$D$58,I48<$D$59),D48,0))+(IF(AND(I49>=$D$58,I49<$D$59),D49,0))+(IF(AND(I50>=$D$58,I50<$D$59),D50,0))) -> 1.185 | I58: =ROUND((IF(AND(I27>=$D$58,I27<$D$59),P27,0))+(IF(AND(I28>=$D$58,I28<$D$59),P28,0))+(IF(AND(I29>=$D$58,I29<$D$59),P29,0))+(IF(AND(I30>=$D$58,I30<$D$59),P30,0))+(IF(AND(I31>=$D$58,I31<$D$59),P31,0))+(IF(AND(I32>=$D$58,I32<$D$59),P32,0))+(IF(AND(I33>=$D$58,I33<$D$59),P33,0))+(IF(AND(I34>=$D$58,I34<$D$59),P34,0))+(IF(AND(I35>=$D$58,I35<$D$59),P35,0))+(IF(AND(I36>=$D$58,I36<$D$59),P36,0))+(IF(AND(I37>=$D$58,I37<$D$59),P37,0))+(IF(AND(I38>=$D$58,I38<$D$59),P38,0))+(IF(AND(I39>=$D$58,I39<$D$59),P39,0))+(IF(AND(I40>=$D$58,I40<$D$59),P40,0))+(IF(AND(I41>=$D$58,I41<$D$59),P41,0))+(IF(AND(I42>=$D$58,I42<$D$59),P42,0))+(IF(AND(I43>=$D$58,I43<$D$59),P43,0))+(IF(AND(I44>=$D$58,I44<$D$59),P44,0))+(IF(AND(I45>=$D$58,I45<$D$59),P45,0))+(IF(AND(I46>=$D$58,I46<$D$59),P46,0))+(IF(AND(I47>=$D$58,I47<$D$59),P47,0))+(IF(AND(I48>=$D$58,I48<$D$59),P48,0))+(IF(AND(I49>=$D$58,I49<$D$59),P49,0))+(IF(AND(I50>=$D$58,I50<$D$59),P50,0)),0) -> 194 | M58: =X58*$W$23+Z58*$Y$23+AB58*$AA$23+AD58*$AC$23+AF58*$AE$23 -> 3496 | O58: =(X58*$W$23+Z58*$Y$23+AB58*$AA$23+AD58*$AC$23+AF58*$AE$23)/$F$6 -> 34.96 | W58: =DATE(YEAR(W27),1,1) -> 2021-01-01 | X58: =ROUND((IF(AND(W27>=$W$58,W27<$W$59),X27,0))+(IF(AND(W28>=$W$58,W28<$W$59),X28,0))+(IF(AND(W29>=$W$58,W29<$W$59),X29,0))+(IF(AND(W30>=$W$58,W30<$W$59),X30,0))+(IF(AND(W31>=$W$58,W31<$W$59),X31,0))+(IF(AND(W32>=$W$58,W32<$W$59),X32,0))+(IF(AND(W33>=$W$58,W33<$W$59),X33,0))+(IF(AND(W34>=$W$58,W34<$W$59),X34,0))+(IF(AND(W35>=$W$58,W35<$W$59),X35,0))+(IF(AND(W36>=$W$58,W36<$W$59),X36,0))+(IF(AND(W37>=$W$58,W37<$W$59),X37,0))+(IF(AND(W38>=$W$58,W38<$W$59),X38,0))+(IF(AND(W39>=$W$58,W39<$W$59),X39,0))+(IF(AND(W40>=$W$58,W40<$W$59),X40,0))+(IF(AND(W41>=$W$58,W41<$W$59),X41,0))+(IF(AND(W42>=$W$58,W42<$W$59),X42,0))+(IF(AND(W43>=$W$58,W43<$W$59),X43,0))+(IF(AND(W44>=$W$58,W44<$W$59),X44,0))+(IF(AND(W45>=$W$58,W45<$W$59),X45,0))+(IF(AND(W46>=$W$58,W46<$W$59),X46,0))+(IF(AND(W47>=$W$58,W47<$W$59),X47,0))+(IF(AND(W48>=$W$58,W48<$W$59),X48,0))+(IF(AND(W49>=$W$58,W49<$W$59),X49,0))+(IF(AND(W50>=$W$58,W50<$W$59),X50,0)),0) -> 8 | Z58: =ROUND((IF(AND(Y27>=$W$58,Y27<$W$59),Z27,0))+(IF(AND(Y28>=$W$58,Y28<$W$59),Z28,0))+(IF(AND(Y29>=$W$58,Y29<$W$59),Z29,0))+(IF(AND(Y30>=$W$58,Y30<$W$59),Z30,0))+(IF(AND(Y31>=$W$58,Y31<$W$59),Z31,0))+(IF(AND(Y32>=$W$58,Y32<$W$59),Z32,0))+(IF(AND(Y33>=$W$58,Y33<$W$59),Z33,0))+(IF(AND(Y34>=$W$58,Y34<$W$59),Z34,0))+(IF(AND(Y35>=$W$58,Y35<$W$59),Z35,0))+(IF(AND(Y36>=$W$58,Y36<$W$59),Z36,0))+(IF(AND(Y37>=$W$58,Y37<$W$59),Z37,0))+(IF(AND(Y38>=$W$58,Y38<$W$59),Z38,0))+(IF(AND(Y39>=$W$58,Y39<$W$59),Z39,0))+(IF(AND(Y40>=$W$58,Y40<$W$59),Z40,0))+(IF(AND(Y41>=$W$58,Y41<$W$59),Z41,0))+(IF(AND(Y42>=$W$58,Y42<$W$59),Z42,0))+(IF(AND(Y43>=$W$58,Y43<$W$59),Z43,0))+(IF(AND(Y44>=$W$58,Y44<$W$59),Z44,0))+(IF(AND(Y45>=$W$58,Y45<$W$59),Z45,0))+(IF(AND(Y46>=$W$58,Y46<$W$59),Z46,0))+(IF(AND(Y47>=$W$58,Y47<$W$59),Z47,0))+(IF(AND(Y48>=$W$58,Y48<$W$59),Z48,0))+(IF(AND(Y49>=$W$58,Y49<$W$59),Z49,0))+(IF(AND(Y50>=$W$58,Y50<$W$59),Z50,0)),0) -> 8 | AB58: =ROUND((IF(AND(AA27>=$W$58,AA27<$W$59),AB27,0))+(IF(AND(AA28>=$W$58,AA28<$W$59),AB28,0))+(IF(AND(AA29>=$W$58,AA29<$W$59),AB29,0))+(IF(AND(AA30>=$W$58,AA30<$W$59),AB30,0))+(IF(AND(AA31>=$W$58,AA31<$W$59),AB31,0))+(IF(AND(AA32>=$W$58,AA32<$W$59),AB32,0))+(IF(AND(AA33>=$W$58,AA33<$W$59),AB33,0))+(IF(AND(AA34>=$W$58,AA34<$W$59),AB34,0))+(IF(AND(AA35>=$W$58,AA35<$W$59),AB35,0))+(IF(AND(AA36>=$W$58,AA36<$W$59),AB36,0))+(IF(AND(AA37>=$W$58,AA37<$W$59),AB37,0))+(IF(AND(AA38>=$W$58,AA38<$W$59),AB38,0))+(IF(AND(AA39>=$W$58,AA39<$W$59),AB39,0))+(IF(AND(AA40>=$W$58,AA40<$W$59),AB40,0))+(IF(AND(AA41>=$W$58,AA41<$W$59),AB41,0))+(IF(AND(AA42>=$W$58,AA42<$W$59),AB42,0))+(IF(AND(AA43>=$W$58,AA43<$W$59),AB43,0))+(IF(AND(AA44>=$W$58,AA44<$W$59),AB44,0))+(IF(AND(AA45>=$W$58,AA45<$W$59),AB45,0))+(IF(AND(AA46>=$W$58,AA46<$W$59),AB46,0))+(IF(AND(AA47>=$W$58,AA47<$W$59),AB47,0))+(IF(AND(AA48>=$W$58,AA48<$W$59),AB48,0))+(IF(AND(AA49>=$W$58,AA49<$W$59),AB49,0))+(IF(AND(AA50>=$W$58,AA50<$W$59),AB50,0)),0) -> 64 | AD58: =ROUND((IF(AND(AC27>=$W$58,AC27<$W$59),AD27,0))+(IF(AND(AC28>=$W$58,AC28<$W$59),AD28,0))+(IF(AND(AC29>=$W$58,AC29<$W$59),AD29,0))+(IF(AND(AC30>=$W$58,AC30<$W$59),AD30,0))+(IF(AND(AC31>=$W$58,AC31<$W$59),AD31,0))+(IF(AND(AC32>=$W$58,AC32<$W$59),AD32,0))+(IF(AND(AC33>=$W$58,AC33<$W$59),AD33,0))+(IF(AND(AC34>=$W$58,AC34<$W$59),AD34,0))+(IF(AND(AC35>=$W$58,AC35<$W$59),AD35,0))+(IF(AND(AC36>=$W$58,AC36<$W$59),AD36,0))+(IF(AND(AC37>=$W$58,AC37<$W$59),AD37,0))+(IF(AND(AC38>=$W$58,AC38<$W$59),AD38,0))+(IF(AND(AC39>=$W$58,AC39<$W$59),AD39,0))+(IF(AND(AC40>=$W$58,AC40<$W$59),AD40,0))+(IF(AND(AC41>=$W$58,AC41<$W$59),AD41,0))+(IF(AND(AC42>=$W$58,AC42<$W$59),AD42,0))+(IF(AND(AC43>=$W$58,AC43<$W$59),AD43,0))+(IF(AND(AC44>=$W$58,AC44<$W$59),AD44,0))+(IF(AND(AC45>=$W$58,AC45<$W$59),AD45,0))+(IF(AND(AC46>=$W$58,AC46<$W$59),AD46,0))+(IF(AND(AC47>=$W$58,AC47<$W$59),AD47,0))+(IF(AND(AC48>=$W$58,AC48<$W$59),AD48,0))+(IF(AND(AC49>=$W$58,AC49<$W$59),AD49,0))+(IF(AND(AC50>=$W$58,AC50<$W$59),AD50,0)),0) -> 12 | AF58: =ROUND((IF(AND(AE27>=$W$58,AE27<$W$59),AF27,0))+(IF(AND(AE28>=$W$58,AE28<$W$59),AF28,0))+(IF(AND(AE29>=$W$58,AE29<$W$59),AF29,0))+(IF(AND(AE30>=$W$58,AE30<$W$59),AF30,0))+(IF(AND(AE31>=$W$58,AE31<$W$59),AF31,0))+(IF(AND(AE32>=$W$58,AE32<$W$59),AF32,0))+(IF(AND(AE33>=$W$58,AE33<$W$59),AF33,0))+(IF(AND(AE34>=$W$58,AE34<$W$59),AF34,0))+(IF(AND(AE35>=$W$58,AE35<$W$59),AF35,0))+(IF(AND(AE36>=$W$58,AE36<$W$59),AF36,0))+(IF(AND(AE37>=$W$58,AE37<$W$59),AF37,0))+(IF(AND(AE38>=$W$58,AE38<$W$59),AF38,0))+(IF(AND(AE39>=$W$58,AE39<$W$59),AF39,0))+(IF(AND(AE40>=$W$58,AE40<$W$59),AF40,0))+(IF(AND(AE41>=$W$58,AE41<$W$59),AF41,0))+(IF(AND(AE42>=$W$58,AE42<$W$59),AF42,0))+(IF(AND(AE43>=$W$58,AE43<$W$59),AF43,0))+(IF(AND(AE44>=$W$58,AE44<$W$59),AF44,0))+(IF(AND(AE45>=$W$58,AE45<$W$59),AF45,0))+(IF(AND(AE46>=$W$58,AE46<$W$59),AF46,0))+(IF(AND(AE47>=$W$58,AE47<$W$59),AF47,0))+(IF(AND(AE48>=$W$58,AE48<$W$59),AF48,0))+(IF(AND(AE49>=$W$58,AE49<$W$59),AF49,0))+(IF(AND(AE50>=$W$58,AE50<$W$59),AF50,0)),0) -> 0
D59: =DATE(YEAR(I27+365),1,1) -> 2022-01-01 | E59: =12/$F$8*((IF(AND(I27>=$D$59,I27<$D$60),K27*D27,0))+(IF(AND(I28>=$D$59,I28<$D$60),K28*D28,0))+(IF(AND(I29>=$D$59,I29<$D$60),K29*D29,0))+(IF(AND(I30>=$D$59,I30<$D$60),K30*D30,0))+(IF(AND(I31>=$D$59,I31<$D$60),K31*D31,0))+(IF(AND(I32>=$D$59,I32<$D$60),K32*D32,0))+(IF(AND(I33>=$D$59,I33<$D$60),K33*D33,0))+(IF(AND(I34>=$D$59,I34<$D$60),K34*D34,0))+(IF(AND(I35>=$D$59,I35<$D$60),K35*D35,0))+(IF(AND(I36>=$D$59,I36<$D$60),K36*D36,0))+(IF(AND(I37>=$D$59,I37<$D$60),K37*D37,0))+(IF(AND(I38>=$D$59,I38<$D$60),K38*D38,0))+(IF(AND(I39>=$D$59,I39<$D$60),K39*D39,0))+(IF(AND(I40>=$D$59,I40<$D$60),K40*D40,0))+(IF(AND(I41>=$D$59,I41<$D$60),K41*D41,0))+(IF(AND(I42>=$D$59,I42<$D$60),K42*D42,0))+(IF(AND(I43>=$D$59,I43<$D$60),K43*D43,0))+(IF(AND(I44>=$D$59,I44<$D$60),K44*D44,0))+(IF(AND(I45>=$D$59,I45<$D$60),K45*D45,0))+(IF(AND(I46>=$D$59,I46<$D$60),K46*D46,0))+(IF(AND(I47>=$D$59,I47<$D$60),K47*D47,0))+(IF(AND(I48>=$D$59,I48<$D$60),K48*D48,0))+(IF(AND(I49>=$D$59,I49<$D$60),K49*D49,0))+(IF(AND(I50>=$D$59,I50<$D$60),K50*D50,0)))/((IF(AND(I27>=$D$59,I27<$D$60),D27,0))+(IF(AND(I28>=$D$59,I28<$D$60),D28,0))+(IF(AND(I29>=$D$59,I29<$D$60),D29,0))+(IF(AND(I30>=$D$59,I30<$D$60),D30,0))+(IF(AND(I31>=$D$59,I31<$D$60),D31,0))+(IF(AND(I32>=$D$59,I32<$D$60),D32,0))+(IF(AND(I33>=$D$59,I33<$D$60),D33,0))+(IF(AND(I34>=$D$59,I34<$D$60),D34,0))+(IF(AND(I35>=$D$59,I35<$D$60),D35,0))+(IF(AND(I36>=$D$59,I36<$D$60),D36,0))+(IF(AND(I37>=$D$59,I37<$D$60),D37,0))+(IF(AND(I38>=$D$59,I38<$D$60),D38,0))+(IF(AND(I39>=$D$59,I39<$D$60),D39,0))+(IF(AND(I40>=$D$59,I40<$D$60),D40,0))+(IF(AND(I41>=$D$59,I41<$D$60),D41,0))+(IF(AND(I42>=$D$59,I42<$D$60),D42,0))+(IF(AND(I43>=$D$59,I43<$D$60),D43,0))+(IF(AND(I44>=$D$59,I44<$D$60),D44,0))+(IF(AND(I45>=$D$59,I45<$D$60),D45,0))+(IF(AND(I46>=$D$59,I46<$D$60),D46,0))+(IF(AND(I47>=$D$59,I47<$D$60),D47,0))+(IF(AND(I48>=$D$59,I48<$D$60),D48,0))+(IF(AND(I49>=$D$59,I49<$D$60),D49,0))+(IF(AND(I50>=$D$59,I50<$D$60),D50,0))) -> 1.1625 | I59: =ROUND((IF(AND(I27>=$D$59,I27<$D$60),P27,0))+(IF(AND(I28>=$D$59,I28<$D$60),P28,0))+(IF(AND(I29>=$D$59,I29<$D$60),P29,0))+(IF(AND(I30>=$D$59,I30<$D$60),P30,0))+(IF(AND(I31>=$D$59,I31<$D$60),P31,0))+(IF(AND(I32>=$D$59,I32<$D$60),P32,0))+(IF(AND(I33>=$D$59,I33<$D$60),P33,0))+(IF(AND(I34>=$D$59,I34<$D$60),P34,0))+(IF(AND(I35>=$D$59,I35<$D$60),P35,0))+(IF(AND(I36>=$D$59,I36<$D$60),P36,0))+(IF(AND(I37>=$D$59,I37<$D$60),P37,0))+(IF(AND(I38>=$D$59,I38<$D$60),P38,0))+(IF(AND(I39>=$D$59,I39<$D$60),P39,0))+(IF(AND(I40>=$D$59,I40<$D$60),P40,0))+(IF(AND(I41>=$D$59,I41<$D$60),P41,0))+(IF(AND(I42>=$D$59,I42<$D$60),P42,0))+(IF(AND(I43>=$D$59,I43<$D$60),P43,0))+(IF(AND(I44>=$D$59,I44<$D$60),P44,0))+(IF(AND(I45>=$D$59,I45<$D$60),P45,0))+(IF(AND(I46>=$D$59,I46<$D$60),P46,0))+(IF(AND(I47>=$D$59,I47<$D$60),P47,0))+(IF(AND(I48>=$D$59,I48<$D$60),P48,0))+(IF(AND(I49>=$D$59,I49<$D$60),P49,0))+(IF(AND(I50>=$D$59,I50<$D$60),P50,0)),0) -> 228 | M59: =X59*$W$23+Z59*$Y$23+AB59*$AA$23+AD59*$AC$23+AF59*$AE$23 -> 8940.4 | O59: =(X59*$W$23+Z59*$Y$23+AB59*$AA$23+AD59*$AC$23+AF59*$AE$23)/$F$6 -> 89.404 | W59: =DATE(YEAR(W27+365),1,1) -> 2022-01-01 | X59: =ROUND((IF(AND(W27>=$W$59,W27<$W$60),X27,0))+(IF(AND(W28>=$W$59,W28<$W$60),X28,0))+(IF(AND(W29>=$W$59,W29<$W$60),X29,0))+(IF(AND(W30>=$W$59,W30<$W$60),X30,0))+(IF(AND(W31>=$W$59,W31<$W$60),X31,0))+(IF(AND(W32>=$W$59,W32<$W$60),X32,0))+(IF(AND(W33>=$W$59,W33<$W$60),X33,0))+(IF(AND(W34>=$W$59,W34<$W$60),X34,0))+(IF(AND(W35>=$W$59,W35<$W$60),X35,0))+(IF(AND(W36>=$W$59,W36<$W$60),X36,0))+(IF(AND(W37>=$W$59,W37<$W$60),X37,0))+(IF(AND(W38>=$W$59,W38<$W$60),X38,0))+(IF(AND(W39>=$W$59,W39<$W$60),X39,0))+(IF(AND(W40>=$W$59,W40<$W$60),X40,0))+(IF(AND(W41>=$W$59,W41<$W$60),X41,0))+(IF(AND(W42>=$W$59,W42<$W$60),X42,0))+(IF(AND(W43>=$W$59,W43<$W$60),X43,0))+(IF(AND(W44>=$W$59,W44<$W$60),X44,0))+(IF(AND(W45>=$W$59,W45<$W$60),X45,0))+(IF(AND(W46>=$W$59,W46<$W$60),X46,0))+(IF(AND(W47>=$W$59,W47<$W$60),X47,0))+(IF(AND(W48>=$W$59,W48<$W$60),X48,0))+(IF(AND(W49>=$W$59,W49<$W$60),X49,0))+(IF(AND(W50>=$W$59,W50<$W$60),X50,0)),0) -> 12 | Z59: =ROUND((IF(AND(Y27>=$W$59,Y27<$W$60),Z27,0))+(IF(AND(Y28>=$W$59,Y28<$W$60),Z28,0))+(IF(AND(Y29>=$W$59,Y29<$W$60),Z29,0))+(IF(AND(Y30>=$W$59,Y30<$W$60),Z30,0))+(IF(AND(Y31>=$W$59,Y31<$W$60),Z31,0))+(IF(AND(Y32>=$W$59,Y32<$W$60),Z32,0))+(IF(AND(Y33>=$W$59,Y33<$W$60),Z33,0))+(IF(AND(Y34>=$W$59,Y34<$W$60),Z34,0))+(IF(AND(Y35>=$W$59,Y35<$W$60),Z35,0))+(IF(AND(Y36>=$W$59,Y36<$W$60),Z36,0))+(IF(AND(Y37>=$W$59,Y37<$W$60),Z37,0))+(IF(AND(Y38>=$W$59,Y38<$W$60),Z38,0))+(IF(AND(Y39>=$W$59,Y39<$W$60),Z39,0))+(IF(AND(Y40>=$W$59,Y40<$W$60),Z40,0))+(IF(AND(Y41>=$W$59,Y41<$W$60),Z41,0))+(IF(AND(Y42>=$W$59,Y42<$W$60),Z42,0))+(IF(AND(Y43>=$W$59,Y43<$W$60),Z43,0))+(IF(AND(Y44>=$W$59,Y44<$W$60),Z44,0))+(IF(AND(Y45>=$W$59,Y45<$W$60),Z45,0))+(IF(AND(Y46>=$W$59,Y46<$W$60),Z46,0))+(IF(AND(Y47>=$W$59,Y47<$W$60),Z47,0))+(IF(AND(Y48>=$W$59,Y48<$W$60),Z48,0))+(IF(AND(Y49>=$W$59,Y49<$W$60),Z49,0))+(IF(AND(Y50>=$W$59,Y50<$W$60),Z50,0)),0) -> 12 | AB59: =ROUND((IF(AND(AA27>=$W$59,AA27<$W$60),AB27,0))+(IF(AND(AA28>=$W$59,AA28<$W$60),AB28,0))+(IF(AND(AA29>=$W$59,AA29<$W$60),AB29,0))+(IF(AND(AA30>=$W$59,AA30<$W$60),AB30,0))+(IF(AND(AA31>=$W$59,AA31<$W$60),AB31,0))+(IF(AND(AA32>=$W$59,AA32<$W$60),AB32,0))+(IF(AND(AA33>=$W$59,AA33<$W$60),AB33,0))+(IF(AND(AA34>=$W$59,AA34<$W$60),AB34,0))+(IF(AND(AA35>=$W$59,AA35<$W$60),AB35,0))+(IF(AND(AA36>=$W$59,AA36<$W$60),AB36,0))+(IF(AND(AA37>=$W$59,AA37<$W$60),AB37,0))+(IF(AND(AA38>=$W$59,AA38<$W$60),AB38,0))+(IF(AND(AA39>=$W$59,AA39<$W$60),AB39,0))+(IF(AND(AA40>=$W$59,AA40<$W$60),AB40,0))+(IF(AND(AA41>=$W$59,AA41<$W$60),AB41,0))+(IF(AND(AA42>=$W$59,AA42<$W$60),AB42,0))+(IF(AND(AA43>=$W$59,AA43<$W$60),AB43,0))+(IF(AND(AA44>=$W$59,AA44<$W$60),AB44,0))+(IF(AND(AA45>=$W$59,AA45<$W$60),AB45,0))+(IF(AND(AA46>=$W$59,AA46<$W$60),AB46,0))+(IF(AND(AA47>=$W$59,AA47<$W$60),AB47,0))+(IF(AND(AA48>=$W$59,AA48<$W$60),AB48,0))+(IF(AND(AA49>=$W$59,AA49<$W$60),AB49,0))+(IF(AND(AA50>=$W$59,AA50<$W$60),AB50,0)),0) -> 174 | AD59: =ROUND((IF(AND(AC27>=$W$59,AC27<$W$60),AD27,0))+(IF(AND(AC28>=$W$59,AC28<$W$60),AD28,0))+(IF(AND(AC29>=$W$59,AC29<$W$60),AD29,0))+(IF(AND(AC30>=$W$59,AC30<$W$60),AD30,0))+(IF(AND(AC31>=$W$59,AC31<$W$60),AD31,0))+(IF(AND(AC32>=$W$59,AC32<$W$60),AD32,0))+(IF(AND(AC33>=$W$59,AC33<$W$60),AD33,0))+(IF(AND(AC34>=$W$59,AC34<$W$60),AD34,0))+(IF(AND(AC35>=$W$59,AC35<$W$60),AD35,0))+(IF(AND(AC36>=$W$59,AC36<$W$60),AD36,0))+(IF(AND(AC37>=$W$59,AC37<$W$60),AD37,0))+(IF(AND(AC38>=$W$59,AC38<$W$60),AD38,0))+(IF(AND(AC39>=$W$59,AC39<$W$60),AD39,0))+(IF(AND(AC40>=$W$59,AC40<$W$60),AD40,0))+(IF(AND(AC41>=$W$59,AC41<$W$60),AD41,0))+(IF(AND(AC42>=$W$59,AC42<$W$60),AD42,0))+(IF(AND(AC43>=$W$59,AC43<$W$60),AD43,0))+(IF(AND(AC44>=$W$59,AC44<$W$60),AD44,0))+(IF(AND(AC45>=$W$59,AC45<$W$60),AD45,0))+(IF(AND(AC46>=$W$59,AC46<$W$60),AD46,0))+(IF(AND(AC47>=$W$59,AC47<$W$60),AD47,0))+(IF(AND(AC48>=$W$59,AC48<$W$60),AD48,0))+(IF(AND(AC49>=$W$59,AC49<$W$60),AD49,0))+(IF(AND(AC50>=$W$59,AC50<$W$60),AD50,0)),0) -> 30 | AF59: =ROUND((IF(AND(AE27>=$W$59,AE27<$W$60),AF27,0))+(IF(AND(AE28>=$W$59,AE28<$W$60),AF28,0))+(IF(AND(AE29>=$W$59,AE29<$W$60),AF29,0))+(IF(AND(AE30>=$W$59,AE30<$W$60),AF30,0))+(IF(AND(AE31>=$W$59,AE31<$W$60),AF31,0))+(IF(AND(AE32>=$W$59,AE32<$W$60),AF32,0))+(IF(AND(AE33>=$W$59,AE33<$W$60),AF33,0))+(IF(AND(AE34>=$W$59,AE34<$W$60),AF34,0))+(IF(AND(AE35>=$W$59,AE35<$W$60),AF35,0))+(IF(AND(AE36>=$W$59,AE36<$W$60),AF36,0))+(IF(AND(AE37>=$W$59,AE37<$W$60),AF37,0))+(IF(AND(AE38>=$W$59,AE38<$W$60),AF38,0))+(IF(AND(AE39>=$W$59,AE39<$W$60),AF39,0))+(IF(AND(AE40>=$W$59,AE40<$W$60),AF40,0))+(IF(AND(AE41>=$W$59,AE41<$W$60),AF41,0))+(IF(AND(AE42>=$W$59,AE42<$W$60),AF42,0))+(IF(AND(AE43>=$W$59,AE43<$W$60),AF43,0))+(IF(AND(AE44>=$W$59,AE44<$W$60),AF44,0))+(IF(AND(AE45>=$W$59,AE45<$W$60),AF45,0))+(IF(AND(AE46>=$W$59,AE46<$W$60),AF46,0))+(IF(AND(AE47>=$W$59,AE47<$W$60),AF47,0))+(IF(AND(AE48>=$W$59,AE48<$W$60),AF48,0))+(IF(AND(AE49>=$W$59,AE49<$W$60),AF49,0))+(IF(AND(AE50>=$W$59,AE50<$W$60),AF50,0)),0) -> 2
D60: =DATE(YEAR(I27+(365*2)),1,1) -> 2023-01-01 | E60: =12/$F$8*((IF(AND(I27>=$D$60,I27<$D$61),K27*D27,0))+(IF(AND(I28>=$D$60,I28<$D$61),K28*D28,0))+(IF(AND(I29>=$D$60,I29<$D$61),K29*D29,0))+(IF(AND(I30>=$D$60,I30<$D$61),K30*D30,0))+(IF(AND(I31>=$D$60,I31<$D$61),K31*D31,0))+(IF(AND(I32>=$D$60,I32<$D$61),K32*D32,0))+(IF(AND(I33>=$D$60,I33<$D$61),K33*D33,0))+(IF(AND(I34>=$D$60,I34<$D$61),K34*D34,0))+(IF(AND(I35>=$D$60,I35<$D$61),K35*D35,0))+(IF(AND(I36>=$D$60,I36<$D$61),K36*D36,0))+(IF(AND(I37>=$D$60,I37<$D$61),K37*D37,0))+(IF(AND(I38>=$D$60,I38<$D$61),K38*D38,0))+(IF(AND(I39>=$D$60,I39<$D$61),K39*D39,0))+(IF(AND(I40>=$D$60,I40<$D$61),K40*D40,0))+(IF(AND(I41>=$D$60,I41<$D$61),K41*D41,0))+(IF(AND(I42>=$D$60,I42<$D$61),K42*D42,0))+(IF(AND(I43>=$D$60,I43<$D$61),K43*D43,0))+(IF(AND(I44>=$D$60,I44<$D$61),K44*D44,0))+(IF(AND(I45>=$D$60,I45<$D$61),K45*D45,0))+(IF(AND(I46>=$D$60,I46<$D$61),K46*D46,0))+(IF(AND(I47>=$D$60,I47<$D$61),K47*D47,0))+(IF(AND(I48>=$D$60,I48<$D$61),K48*D48,0))+(IF(AND(I49>=$D$60,I49<$D$61),K49*D49,0))+(IF(AND(I50>=$D$60,I50<$D$61),K50*D50,0)))/((IF(AND(I27>=$D$60,I27<$D$61),D27,0))+(IF(AND(I28>=$D$60,I28<$D$61),D28,0))+(IF(AND(I29>=$D$60,I29<$D$61),D29,0))+(IF(AND(I30>=$D$60,I30<$D$61),D30,0))+(IF(AND(I31>=$D$60,I31<$D$61),D31,0))+(IF(AND(I32>=$D$60,I32<$D$61),D32,0))+(IF(AND(I33>=$D$60,I33<$D$61),D33,0))+(IF(AND(I34>=$D$60,I34<$D$61),D34,0))+(IF(AND(I35>=$D$60,I35<$D$61),D35,0))+(IF(AND(I36>=$D$60,I36<$D$61),D36,0))+(IF(AND(I37>=$D$60,I37<$D$61),D37,0))+(IF(AND(I38>=$D$60,I38<$D$61),D38,0))+(IF(AND(I39>=$D$60,I39<$D$61),D39,0))+(IF(AND(I40>=$D$60,I40<$D$61),D40,0))+(IF(AND(I41>=$D$60,I41<$D$61),D41,0))+(IF(AND(I42>=$D$60,I42<$D$61),D42,0))+(IF(AND(I43>=$D$60,I43<$D$61),D43,0))+(IF(AND(I44>=$D$60,I44<$D$61),D44,0))+(IF(AND(I45>=$D$60,I45<$D$61),D45,0))+(IF(AND(I46>=$D$60,I46<$D$61),D46,0))+(IF(AND(I47>=$D$60,I47<$D$61),D47,0))+(IF(AND(I48>=$D$60,I48<$D$61),D48,0))+(IF(AND(I49>=$D$60,I49<$D$61),D49,0))+(IF(AND(I50>=$D$60,I50<$D$61),D50,0))) -> 1.1625 | I60: =ROUND((IF(AND(I27>=$D$60,I27<$D$61),P27,0))+(IF(AND(I28>=$D$60,I28<$D$61),P28,0))+(IF(AND(I29>=$D$60,I29<$D$61),P29,0))+(IF(AND(I30>=$D$60,I30<$D$61),P30,0))+(IF(AND(I31>=$D$60,I31<$D$61),P31,0))+(IF(AND(I32>=$D$60,I32<$D$61),P32,0))+(IF(AND(I33>=$D$60,I33<$D$61),P33,0))+(IF(AND(I34>=$D$60,I34<$D$61),P34,0))+(IF(AND(I35>=$D$60,I35<$D$61),P35,0))+(IF(AND(I36>=$D$60,I36<$D$61),P36,0))+(IF(AND(I37>=$D$60,I37<$D$61),P37,0))+(IF(AND(I38>=$D$60,I38<$D$61),P38,0))+(IF(AND(I39>=$D$60,I39<$D$61),P39,0))+(IF(AND(I40>=$D$60,I40<$D$61),P40,0))+(IF(AND(I41>=$D$60,I41<$D$61),P41,0))+(IF(AND(I42>=$D$60,I42<$D$61),P42,0))+(IF(AND(I43>=$D$60,I43<$D$61),P43,0))+(IF(AND(I44>=$D$60,I44<$D$61),P44,0))+(IF(AND(I45>=$D$60,I45<$D$61),P45,0))+(IF(AND(I46>=$D$60,I46<$D$61),P46,0))+(IF(AND(I47>=$D$60,I47<$D$61),P47,0))+(IF(AND(I48>=$D$60,I48<$D$61),P48,0))+(IF(AND(I49>=$D$60,I49<$D$61),P49,0))+(IF(AND(I50>=$D$60,I50<$D$61),P50,0)),0) -> 228 | M60: =X60*$W$23+Z60*$Y$23+AB60*$AA$23+AD60*$AC$23+AF60*$AE$23 -> 10506.4 | O60: 105.064 | W60: =DATE(YEAR(W27+(365*2)),1,1) -> 2023-01-01 | X60: =ROUND((IF(AND(W27>=$W$60,W27<$W$61),X27,0))+(IF(AND(W28>=$W$60,W28<$W$61),X28,0))+(IF(AND(W29>=$W$60,W29<$W$61),X29,0))+(IF(AND(W30>=$W$60,W30<$W$61),X30,0))+(IF(AND(W31>=$W$60,W31<$W$61),X31,0))+(IF(AND(W32>=$W$60,W32<$W$61),X32,0))+(IF(AND(W33>=$W$60,W33<$W$61),X33,0))+(IF(AND(W34>=$W$60,W34<$W$61),X34,0))+(IF(AND(W35>=$W$60,W35<$W$61),X35,0))+(IF(AND(W36>=$W$60,W36<$W$61),X36,0))+(IF(AND(W37>=$W$60,W37<$W$61),X37,0))+(IF(AND(W38>=$W$60,W38<$W$61),X38,0))+(IF(AND(W39>=$W$60,W39<$W$61),X39,0))+(IF(AND(W40>=$W$60,W40<$W$61),X40,0))+(IF(AND(W41>=$W$60,W41<$W$61),X41,0))+(IF(AND(W42>=$W$60,W42<$W$61),X42,0))+(IF(AND(W43>=$W$60,W43<$W$61),X43,0))+(IF(AND(W44>=$W$60,W44<$W$61),X44,0))+(IF(AND(W45>=$W$60,W45<$W$61),X45,0))+(IF(AND(W46>=$W$60,W46<$W$61),X46,0))+(IF(AND(W47>=$W$60,W47<$W$61),X47,0))+(IF(AND(W48>=$W$60,W48<$W$61),X48,0))+(IF(AND(W49>=$W$60,W49<$W$61),X49,0))+(IF(AND(W50>=$W$60,W50<$W$61),X50,0)),0) -> 14 | Z60: =ROUND((IF(AND(Y27>=$W$60,Y27<$W$61),Z27,0))+(IF(AND(Y28>=$W$60,Y28<$W$61),Z28,0))+(IF(AND(Y29>=$W$60,Y29<$W$61),Z29,0))+(IF(AND(Y30>=$W$60,Y30<$W$61),Z30,0))+(IF(AND(Y31>=$W$60,Y31<$W$61),Z31,0))+(IF(AND(Y32>=$W$60,Y32<$W$61),Z32,0))+(IF(AND(Y33>=$W$60,Y33<$W$61),Z33,0))+(IF(AND(Y34>=$W$60,Y34<$W$61),Z34,0))+(IF(AND(Y35>=$W$60,Y35<$W$61),Z35,0))+(IF(AND(Y36>=$W$60,Y36<$W$61),Z36,0))+(IF(AND(Y37>=$W$60,Y37<$W$61),Z37,0))+(IF(AND(Y38>=$W$60,Y38<$W$61),Z38,0))+(IF(AND(Y39>=$W$60,Y39<$W$61),Z39,0))+(IF(AND(Y40>=$W$60,Y40<$W$61),Z40,0))+(IF(AND(Y41>=$W$60,Y41<$W$61),Z41,0))+(IF(AND(Y42>=$W$60,Y42<$W$61),Z42,0))+(IF(AND(Y43>=$W$60,Y43<$W$61),Z43,0))+(IF(AND(Y44>=$W$60,Y44<$W$61),Z44,0))+(IF(AND(Y45>=$W$60,Y45<$W$61),Z45,0))+(IF(AND(Y46>=$W$60,Y46<$W$61),Z46,0))+(IF(AND(Y47>=$W$60,Y47<$W$61),Z47,0))+(IF(AND(Y48>=$W$60,Y48<$W$61),Z48,0))+(IF(AND(Y49>=$W$60,Y49<$W$61),Z49,0))+(IF(AND(Y50>=$W$60,Y50<$W$61),Z50,0)),0) -> 12 | AB60: =ROUND((IF(AND(AA27>=$W$60,AA27<$W$61),AB27,0))+(IF(AND(AA28>=$W$60,AA28<$W$61),AB28,0))+(IF(AND(AA29>=$W$60,AA29<$W$61),AB29,0))+(IF(AND(AA30>=$W$60,AA30<$W$61),AB30,0))+(IF(AND(AA31>=$W$60,AA31<$W$61),AB31,0))+(IF(AND(AA32>=$W$60,AA32<$W$61),AB32,0))+(IF(AND(AA33>=$W$60,AA33<$W$61),AB33,0))+(IF(AND(AA34>=$W$60,AA34<$W$61),AB34,0))+(IF(AND(AA35>=$W$60,AA35<$W$61),AB35,0))+(IF(AND(AA36>=$W$60,AA36<$W$61),AB36,0))+(IF(AND(AA37>=$W$60,AA37<$W$61),AB37,0))+(IF(AND(AA38>=$W$60,AA38<$W$61),AB38,0))+(IF(AND(AA39>=$W$60,AA39<$W$61),AB39,0))+(IF(AND(AA40>=$W$60,AA40<$W$61),AB40,0))+(IF(AND(AA41>=$W$60,AA41<$W$61),AB41,0))+(IF(AND(AA42>=$W$60,AA42<$W$61),AB42,0))+(IF(AND(AA43>=$W$60,AA43<$W$61),AB43,0))+(IF(AND(AA44>=$W$60,AA44<$W$61),AB44,0))+(IF(AND(AA45>=$W$60,AA45<$W$61),AB45,0))+(IF(AND(AA46>=$W$60,AA46<$W$61),AB46,0))+(IF(AND(AA47>=$W$60,AA47<$W$61),AB47,0))+(IF(AND(AA48>=$W$60,AA48<$W$61),AB48,0))+(IF(AND(AA49>=$W$60,AA49<$W$61),AB49,0))+(IF(AND(AA50>=$W$60,AA50<$W$61),AB50,0)),0) -> 206 | AD60: =ROUND((IF(AND(AC27>=$W$60,AC27<$W$61),AD27,0))+(IF(AND(AC28>=$W$60,AC28<$W$61),AD28,0))+(IF(AND(AC29>=$W$60,AC29<$W$61),AD29,0))+(IF(AND(AC30>=$W$60,AC30<$W$61),AD30,0))+(IF(AND(AC31>=$W$60,AC31<$W$61),AD31,0))+(IF(AND(AC32>=$W$60,AC32<$W$61),AD32,0))+(IF(AND(AC33>=$W$60,AC33<$W$61),AD33,0))+(IF(AND(AC34>=$W$60,AC34<$W$61),AD34,0))+(IF(AND(AC35>=$W$60,AC35<$W$61),AD35,0))+(IF(AND(AC36>=$W$60,AC36<$W$61),AD36,0))+(IF(AND(AC37>=$W$60,AC37<$W$61),AD37,0))+(IF(AND(AC38>=$W$60,AC38<$W$61),AD38,0))+(IF(AND(AC39>=$W$60,AC39<$W$61),AD39,0))+(IF(AND(AC40>=$W$60,AC40<$W$61),AD40,0))+(IF(AND(AC41>=$W$60,AC41<$W$61),AD41,0))+(IF(AND(AC42>=$W$60,AC42<$W$61),AD42,0))+(IF(AND(AC43>=$W$60,AC43<$W$61),AD43,0))+(IF(AND(AC44>=$W$60,AC44<$W$61),AD44,0))+(IF(AND(AC45>=$W$60,AC45<$W$61),AD45,0))+(IF(AND(AC46>=$W$60,AC46<$W$61),AD46,0))+(IF(AND(AC47>=$W$60,AC47<$W$61),AD47,0))+(IF(AND(AC48>=$W$60,AC48<$W$61),AD48,0))+(IF(AND(AC49>=$W$60,AC49<$W$61),AD49,0))+(IF(AND(AC50>=$W$60,AC50<$W$61),AD50,0)),0) -> 36 | AF60: =ROUND((IF(AND(AE27>=$W$60,AE27<$W$61),AF27,0))+(IF(AND(AE28>=$W$60,AE28<$W$61),AF28,0))+(IF(AND(AE29>=$W$60,AE29<$W$61),AF29,0))+(IF(AND(AE30>=$W$60,AE30<$W$61),AF30,0))+(IF(AND(AE31>=$W$60,AE31<$W$61),AF31,0))+(IF(AND(AE32>=$W$60,AE32<$W$61),AF32,0))+(IF(AND(AE33>=$W$60,AE33<$W$61),AF33,0))+(IF(AND(AE34>=$W$60,AE34<$W$61),AF34,0))+(IF(AND(AE35>=$W$60,AE35<$W$61),AF35,0))+(IF(AND(AE36>=$W$60,AE36<$W$61),AF36,0))+(IF(AND(AE37>=$W$60,AE37<$W$61),AF37,0))+(IF(AND(AE38>=$W$60,AE38<$W$61),AF38,0))+(IF(AND(AE39>=$W$60,AE39<$W$61),AF39,0))+(IF(AND(AE40>=$W$60,AE40<$W$61),AF40,0))+(IF(AND(AE41>=$W$60,AE41<$W$61),AF41,0))+(IF(AND(AE42>=$W$60,AE42<$W$61),AF42,0))+(IF(AND(AE43>=$W$60,AE43<$W$61),AF43,0))+(IF(AND(AE44>=$W$60,AE44<$W$61),AF44,0))+(IF(AND(AE45>=$W$60,AE45<$W$61),AF45,0))+(IF(AND(AE46>=$W$60,AE46<$W$61),AF46,0))+(IF(AND(AE47>=$W$60,AE47<$W$61),AF47,0))+(IF(AND(AE48>=$W$60,AE48<$W$61),AF48,0))+(IF(AND(AE49>=$W$60,AE49<$W$61),AF49,0))+(IF(AND(AE50>=$W$60,AE50<$W$61),AF50,0)),0) -> 2
D61: =DATE(YEAR(I27+(365*3)),1,1) -> 2024-01-01 | E61: =12/$F$8*((IF(AND(I27>=$D$61,I27<$D$62),K27*D27,0))+(IF(AND(I28>=$D$61,I28<$D$62),K28*D28,0))+(IF(AND(I29>=$D$61,I29<$D$62),K29*D29,0))+(IF(AND(I30>=$D$61,I30<$D$62),K30*D30,0))+(IF(AND(I31>=$D$61,I31<$D$62),K31*D31,0))+(IF(AND(I32>=$D$61,I32<$D$62),K32*D32,0))+(IF(AND(I33>=$D$61,I33<$D$62),K33*D33,0))+(IF(AND(I34>=$D$61,I34<$D$62),K34*D34,0))+(IF(AND(I35>=$D$61,I35<$D$62),K35*D35,0))+(IF(AND(I36>=$D$61,I36<$D$62),K36*D36,0))+(IF(AND(I37>=$D$61,I37<$D$62),K37*D37,0))+(IF(AND(I38>=$D$61,I38<$D$62),K38*D38,0))+(IF(AND(I39>=$D$61,I39<$D$62),K39*D39,0))+(IF(AND(I40>=$D$61,I40<$D$62),K40*D40,0))+(IF(AND(I41>=$D$61,I41<$D$62),K41*D41,0))+(IF(AND(I42>=$D$61,I42<$D$62),K42*D42,0))+(IF(AND(I43>=$D$61,I43<$D$62),K43*D43,0))+(IF(AND(I44>=$D$61,I44<$D$62),K44*D44,0))+(IF(AND(I45>=$D$61,I45<$D$62),K45*D45,0))+(IF(AND(I46>=$D$61,I46<$D$62),K46*D46,0))+(IF(AND(I47>=$D$61,I47<$D$62),K47*D47,0))+(IF(AND(I48>=$D$61,I48<$D$62),K48*D48,0))+(IF(AND(I49>=$D$61,I49<$D$62),K49*D49,0))+(IF(AND(I50>=$D$61,I50<$D$62),K50*D50,0)))/((IF(AND(I27>=$D$61,I27<$D$62),D27,0))+(IF(AND(I28>=$D$61,I28<$D$62),D28,0))+(IF(AND(I29>=$D$61,I29<$D$62),D29,0))+(IF(AND(I30>=$D$61,I30<$D$62),D30,0))+(IF(AND(I31>=$D$61,I31<$D$62),D31,0))+(IF(AND(I32>=$D$61,I32<$D$62),D32,0))+(IF(AND(I33>=$D$61,I33<$D$62),D33,0))+(IF(AND(I34>=$D$61,I34<$D$62),D34,0))+(IF(AND(I35>=$D$61,I35<$D$62),D35,0))+(IF(AND(I36>=$D$61,I36<$D$62),D36,0))+(IF(AND(I37>=$D$61,I37<$D$62),D37,0))+(IF(AND(I38>=$D$61,I38<$D$62),D38,0))+(IF(AND(I39>=$D$61,I39<$D$62),D39,0))+(IF(AND(I40>=$D$61,I40<$D$62),D40,0))+(IF(AND(I41>=$D$61,I41<$D$62),D41,0))+(IF(AND(I42>=$D$61,I42<$D$62),D42,0))+(IF(AND(I43>=$D$61,I43<$D$62),D43,0))+(IF(AND(I44>=$D$61,I44<$D$62),D44,0))+(IF(AND(I45>=$D$61,I45<$D$62),D45,0))+(IF(AND(I46>=$D$61,I46<$D$62),D46,0))+(IF(AND(I47>=$D$61,I47<$D$62),D47,0))+(IF(AND(I48>=$D$61,I48<$D$62),D48,0))+(IF(AND(I49>=$D$61,I49<$D$62),D49,0))+(IF(AND(I50>=$D$61,I50<$D$62),D50,0))) -> 1.1625 | I61: =ROUND((IF(AND(I27>=$D$61,I27<$D$62),P27,0))+(IF(AND(I28>=$D$61,I28<$D$62),P28,0))+(IF(AND(I29>=$D$61,I29<$D$62),P29,0))+(IF(AND(I30>=$D$61,I30<$D$62),P30,0))+(IF(AND(I31>=$D$61,I31<$D$62),P31,0))+(IF(AND(I32>=$D$61,I32<$D$62),P32,0))+(IF(AND(I33>=$D$61,I33<$D$62),P33,0))+(IF(AND(I34>=$D$61,I34<$D$62),P34,0))+(IF(AND(I35>=$D$61,I35<$D$62),P35,0))+(IF(AND(I36>=$D$61,I36<$D$62),P36,0))+(IF(AND(I37>=$D$61,I37<$D$62),P37,0))+(IF(AND(I38>=$D$61,I38<$D$62),P38,0))+(IF(AND(I39>=$D$61,I39<$D$62),P39,0))+(IF(AND(I40>=$D$61,I40<$D$62),P40,0))+(IF(AND(I41>=$D$61,I41<$D$62),P41,0))+(IF(AND(I42>=$D$61,I42<$D$62),P42,0))+(IF(AND(I43>=$D$61,I43<$D$62),P43,0))+(IF(AND(I44>=$D$61,I44<$D$62),P44,0))+(IF(AND(I45>=$D$61,I45<$D$62),P45,0))+(IF(AND(I46>=$D$61,I46<$D$62),P46,0))+(IF(AND(I47>=$D$61,I47<$D$62),P47,0))+(IF(AND(I48>=$D$61,I48<$D$62),P48,0))+(IF(AND(I49>=$D$61,I49<$D$62),P49,0))+(IF(AND(I50>=$D$61,I50<$D$62),P50,0)),0) -> 228 | M61: =X61*$W$23+Z61*$Y$23+AB61*$AA$23+AD61*$AC$23+AF61*$AE$23 -> 8940.4 | O61: 89.404 | W61: =DATE(YEAR(W27+(365*3)),1,1) -> 2024-01-01 | X61: =ROUND((IF(AND(W27>=$W$61,W27<$W$62),X27,0))+(IF(AND(W28>=$W$61,W28<$W$62),X28,0))+(IF(AND(W29>=$W$61,W29<$W$62),X29,0))+(IF(AND(W30>=$W$61,W30<$W$62),X30,0))+(IF(AND(W31>=$W$61,W31<$W$62),X31,0))+(IF(AND(W32>=$W$61,W32<$W$62),X32,0))+(IF(AND(W33>=$W$61,W33<$W$62),X33,0))+(IF(AND(W34>=$W$61,W34<$W$62),X34,0))+(IF(AND(W35>=$W$61,W35<$W$62),X35,0))+(IF(AND(W36>=$W$61,W36<$W$62),X36,0))+(IF(AND(W37>=$W$61,W37<$W$62),X37,0))+(IF(AND(W38>=$W$61,W38<$W$62),X38,0))+(IF(AND(W39>=$W$61,W39<$W$62),X39,0))+(IF(AND(W40>=$W$61,W40<$W$62),X40,0))+(IF(AND(W41>=$W$61,W41<$W$62),X41,0))+(IF(AND(W42>=$W$61,W42<$W$62),X42,0))+(IF(AND(W43>=$W$61,W43<$W$62),X43,0))+(IF(AND(W44>=$W$61,W44<$W$62),X44,0))+(IF(AND(W45>=$W$61,W45<$W$62),X45,0))+(IF(AND(W46>=$W$61,W46<$W$62),X46,0))+(IF(AND(W47>=$W$61,W47<$W$62),X47,0))+(IF(AND(W48>=$W$61,W48<$W$62),X48,0))+(IF(AND(W49>=$W$61,W49<$W$62),X49,0))+(IF(AND(W50>=$W$61,W50<$W$62),X50,0)),0) -> 12 | Z61: =ROUND((IF(AND(Y27>=$W$61,Y27<$W$62),Z27,0))+(IF(AND(Y28>=$W$61,Y28<$W$62),Z28,0))+(IF(AND(Y29>=$W$61,Y29<$W$62),Z29,0))+(IF(AND(Y30>=$W$61,Y30<$W$62),Z30,0))+(IF(AND(Y31>=$W$61,Y31<$W$62),Z31,0))+(IF(AND(Y32>=$W$61,Y32<$W$62),Z32,0))+(IF(AND(Y33>=$W$61,Y33<$W$62),Z33,0))+(IF(AND(Y34>=$W$61,Y34<$W$62),Z34,0))+(IF(AND(Y35>=$W$61,Y35<$W$62),Z35,0))+(IF(AND(Y36>=$W$61,Y36<$W$62),Z36,0))+(IF(AND(Y37>=$W$61,Y37<$W$62),Z37,0))+(IF(AND(Y38>=$W$61,Y38<$W$62),Z38,0))+(IF(AND(Y39>=$W$61,Y39<$W$62),Z39,0))+(IF(AND(Y40>=$W$61,Y40<$W$62),Z40,0))+(IF(AND(Y41>=$W$61,Y41<$W$62),Z41,0))+(IF(AND(Y42>=$W$61,Y42<$W$62),Z42,0))+(IF(AND(Y43>=$W$61,Y43<$W$62),Z43,0))+(IF(AND(Y44>=$W$61,Y44<$W$62),Z44,0))+(IF(AND(Y45>=$W$61,Y45<$W$62),Z45,0))+(IF(AND(Y46>=$W$61,Y46<$W$62),Z46,0))+(IF(AND(Y47>=$W$61,Y47<$W$62),Z47,0))+(IF(AND(Y48>=$W$61,Y48<$W$62),Z48,0))+(IF(AND(Y49>=$W$61,Y49<$W$62),Z49,0))+(IF(AND(Y50>=$W$61,Y50<$W$62),Z50,0)),0) -> 12 | AB61: =ROUND((IF(AND(AA27>=$W$61,AA27<$W$62),AB27,0))+(IF(AND(AA28>=$W$61,AA28<$W$62),AB28,0))+(IF(AND(AA29>=$W$61,AA29<$W$62),AB29,0))+(IF(AND(AA30>=$W$61,AA30<$W$62),AB30,0))+(IF(AND(AA31>=$W$61,AA31<$W$62),AB31,0))+(IF(AND(AA32>=$W$61,AA32<$W$62),AB32,0))+(IF(AND(AA33>=$W$61,AA33<$W$62),AB33,0))+(IF(AND(AA34>=$W$61,AA34<$W$62),AB34,0))+(IF(AND(AA35>=$W$61,AA35<$W$62),AB35,0))+(IF(AND(AA36>=$W$61,AA36<$W$62),AB36,0))+(IF(AND(AA37>=$W$61,AA37<$W$62),AB37,0))+(IF(AND(AA38>=$W$61,AA38<$W$62),AB38,0))+(IF(AND(AA39>=$W$61,AA39<$W$62),AB39,0))+(IF(AND(AA40>=$W$61,AA40<$W$62),AB40,0))+(IF(AND(AA41>=$W$61,AA41<$W$62),AB41,0))+(IF(AND(AA42>=$W$61,AA42<$W$62),AB42,0))+(IF(AND(AA43>=$W$61,AA43<$W$62),AB43,0))+(IF(AND(AA44>=$W$61,AA44<$W$62),AB44,0))+(IF(AND(AA45>=$W$61,AA45<$W$62),AB45,0))+(IF(AND(AA46>=$W$61,AA46<$W$62),AB46,0))+(IF(AND(AA47>=$W$61,AA47<$W$62),AB47,0))+(IF(AND(AA48>=$W$61,AA48<$W$62),AB48,0))+(IF(AND(AA49>=$W$61,AA49<$W$62),AB49,0))+(IF(AND(AA50>=$W$61,AA50<$W$62),AB50,0)),0) -> 174 | AD61: =ROUND((IF(AND(AC27>=$W$61,AC27<$W$62),AD27,0))+(IF(AND(AC28>=$W$61,AC28<$W$62),AD28,0))+(IF(AND(AC29>=$W$61,AC29<$W$62),AD29,0))+(IF(AND(AC30>=$W$61,AC30<$W$62),AD30,0))+(IF(AND(AC31>=$W$61,AC31<$W$62),AD31,0))+(IF(AND(AC32>=$W$61,AC32<$W$62),AD32,0))+(IF(AND(AC33>=$W$61,AC33<$W$62),AD33,0))+(IF(AND(AC34>=$W$61,AC34<$W$62),AD34,0))+(IF(AND(AC35>=$W$61,AC35<$W$62),AD35,0))+(IF(AND(AC36>=$W$61,AC36<$W$62),AD36,0))+(IF(AND(AC37>=$W$61,AC37<$W$62),AD37,0))+(IF(AND(AC38>=$W$61,AC38<$W$62),AD38,0))+(IF(AND(AC39>=$W$61,AC39<$W$62),AD39,0))+(IF(AND(AC40>=$W$61,AC40<$W$62),AD40,0))+(IF(AND(AC41>=$W$61,AC41<$W$62),AD41,0))+(IF(AND(AC42>=$W$61,AC42<$W$62),AD42,0))+(IF(AND(AC43>=$W$61,AC43<$W$62),AD43,0))+(IF(AND(AC44>=$W$61,AC44<$W$62),AD44,0))+(IF(AND(AC45>=$W$61,AC45<$W$62),AD45,0))+(IF(AND(AC46>=$W$61,AC46<$W$62),AD46,0))+(IF(AND(AC47>=$W$61,AC47<$W$62),AD47,0))+(IF(AND(AC48>=$W$61,AC48<$W$62),AD48,0))+(IF(AND(AC49>=$W$61,AC49<$W$62),AD49,0))+(IF(AND(AC50>=$W$61,AC50<$W$62),AD50,0)),0) -> 30 | AF61: =ROUND((IF(AND(AE27>=$W$61,AE27<$W$62),AF27,0))+(IF(AND(AE28>=$W$61,AE28<$W$62),AF28,0))+(IF(AND(AE29>=$W$61,AE29<$W$62),AF29,0))+(IF(AND(AE30>=$W$61,AE30<$W$62),AF30,0))+(IF(AND(AE31>=$W$61,AE31<$W$62),AF31,0))+(IF(AND(AE32>=$W$61,AE32<$W$62),AF32,0))+(IF(AND(AE33>=$W$61,AE33<$W$62),AF33,0))+(IF(AND(AE34>=$W$61,AE34<$W$62),AF34,0))+(IF(AND(AE35>=$W$61,AE35<$W$62),AF35,0))+(IF(AND(AE36>=$W$61,AE36<$W$62),AF36,0))+(IF(AND(AE37>=$W$61,AE37<$W$62),AF37,0))+(IF(AND(AE38>=$W$61,AE38<$W$62),AF38,0))+(IF(AND(AE39>=$W$61,AE39<$W$62),AF39,0))+(IF(AND(AE40>=$W$61,AE40<$W$62),AF40,0))+(IF(AND(AE41>=$W$61,AE41<$W$62),AF41,0))+(IF(AND(AE42>=$W$61,AE42<$W$62),AF42,0))+(IF(AND(AE43>=$W$61,AE43<$W$62),AF43,0))+(IF(AND(AE44>=$W$61,AE44<$W$62),AF44,0))+(IF(AND(AE45>=$W$61,AE45<$W$62),AF45,0))+(IF(AND(AE46>=$W$61,AE46<$W$62),AF46,0))+(IF(AND(AE47>=$W$61,AE47<$W$62),AF47,0))+(IF(AND(AE48>=$W$61,AE48<$W$62),AF48,0))+(IF(AND(AE49>=$W$61,AE49<$W$62),AF49,0))+(IF(AND(AE50>=$W$61,AE50<$W$62),AF50,0)),0) -> 2
D62: =DATE(YEAR(I27+(365*4)),1,1) -> 2025-01-01 | E62: =12/$F$8*((IF(AND(I27>=$D$62,I27<$D$63),K27*D27,0))+(IF(AND(I28>=$D$62,I28<$D$63),K28*D28,0))+(IF(AND(I29>=$D$62,I29<$D$63),K29*D29,0))+(IF(AND(I30>=$D$62,I30<$D$63),K30*D30,0))+(IF(AND(I31>=$D$62,I31<$D$63),K31*D31,0))+(IF(AND(I32>=$D$62,I32<$D$63),K32*D32,0))+(IF(AND(I33>=$D$62,I33<$D$63),K33*D33,0))+(IF(AND(I34>=$D$62,I34<$D$63),K34*D34,0))+(IF(AND(I35>=$D$62,I35<$D$63),K35*D35,0))+(IF(AND(I36>=$D$62,I36<$D$63),K36*D36,0))+(IF(AND(I37>=$D$62,I37<$D$63),K37*D37,0))+(IF(AND(I38>=$D$62,I38<$D$63),K38*D38,0))+(IF(AND(I39>=$D$62,I39<$D$63),K39*D39,0))+(IF(AND(I40>=$D$62,I40<$D$63),K40*D40,0))+(IF(AND(I41>=$D$62,I41<$D$63),K41*D41,0))+(IF(AND(I42>=$D$62,I42<$D$63),K42*D42,0))+(IF(AND(I43>=$D$62,I43<$D$63),K43*D43,0))+(IF(AND(I44>=$D$62,I44<$D$63),K44*D44,0))+(IF(AND(I45>=$D$62,I45<$D$63),K45*D45,0))+(IF(AND(I46>=$D$62,I46<$D$63),K46*D46,0))+(IF(AND(I47>=$D$62,I47<$D$63),K47*D47,0))+(IF(AND(I48>=$D$62,I48<$D$63),K48*D48,0))+(IF(AND(I49>=$D$62,I49<$D$63),K49*D49,0))+(IF(AND(I50>=$D$62,I50<$D$63),K50*D50,0)))/((IF(AND(I27>=$D$62,I27<$D$63),D27,0))+(IF(AND(I28>=$D$62,I28<$D$63),D28,0))+(IF(AND(I29>=$D$62,I29<$D$63),D29,0))+(IF(AND(I30>=$D$62,I30<$D$63),D30,0))+(IF(AND(I31>=$D$62,I31<$D$63),D31,0))+(IF(AND(I32>=$D$62,I32<$D$63),D32,0))+(IF(AND(I33>=$D$62,I33<$D$63),D33,0))+(IF(AND(I34>=$D$62,I34<$D$63),D34,0))+(IF(AND(I35>=$D$62,I35<$D$63),D35,0))+(IF(AND(I36>=$D$62,I36<$D$63),D36,0))+(IF(AND(I37>=$D$62,I37<$D$63),D37,0))+(IF(AND(I38>=$D$62,I38<$D$63),D38,0))+(IF(AND(I39>=$D$62,I39<$D$63),D39,0))+(IF(AND(I40>=$D$62,I40<$D$63),D40,0))+(IF(AND(I41>=$D$62,I41<$D$63),D41,0))+(IF(AND(I42>=$D$62,I42<$D$63),D42,0))+(IF(AND(I43>=$D$62,I43<$D$63),D43,0))+(IF(AND(I44>=$D$62,I44<$D$63),D44,0))+(IF(AND(I45>=$D$62,I45<$D$63),D45,0))+(IF(AND(I46>=$D$62,I46<$D$63),D46,0))+(IF(AND(I47>=$D$62,I47<$D$63),D47,0))+(IF(AND(I48>=$D$62,I48<$D$63),D48,0))+(IF(AND(I49>=$D$62,I49<$D$63),D49,0))+(IF(AND(I50>=$D$62,I50<$D$63),D50,0))) -> 1.05 | I62: =ROUND((IF(AND(I27>=$D$62,I27<$D$63),P27,0))+(IF(AND(I28>=$D$62,I28<$D$63),P28,0))+(IF(AND(I29>=$D$62,I29<$D$63),P29,0))+(IF(AND(I30>=$D$62,I30<$D$63),P30,0))+(IF(AND(I31>=$D$62,I31<$D$63),P31,0))+(IF(AND(I32>=$D$62,I32<$D$63),P32,0))+(IF(AND(I33>=$D$62,I33<$D$63),P33,0))+(IF(AND(I34>=$D$62,I34<$D$63),P34,0))+(IF(AND(I35>=$D$62,I35<$D$63),P35,0))+(IF(AND(I36>=$D$62,I36<$D$63),P36,0))+(IF(AND(I37>=$D$62,I37<$D$63),P37,0))+(IF(AND(I38>=$D$62,I38<$D$63),P38,0))+(IF(AND(I39>=$D$62,I39<$D$63),P39,0))+(IF(AND(I40>=$D$62,I40<$D$63),P40,0))+(IF(AND(I41>=$D$62,I41<$D$63),P41,0))+(IF(AND(I42>=$D$62,I42<$D$63),P42,0))+(IF(AND(I43>=$D$62,I43<$D$63),P43,0))+(IF(AND(I44>=$D$62,I44<$D$63),P44,0))+(IF(AND(I45>=$D$62,I45<$D$63),P45,0))+(IF(AND(I46>=$D$62,I46<$D$63),P46,0))+(IF(AND(I47>=$D$62,I47<$D$63),P47,0))+(IF(AND(I48>=$D$62,I48<$D$63),P48,0))+(IF(AND(I49>=$D$62,I49<$D$63),P49,0))+(IF(AND(I50>=$D$62,I50<$D$63),P50,0)),0) -> 34 | M62: =X62*$W$23+Z62*$Y$23+AB62*$AA$23+AD62*$AC$23+AF62*$AE$23 -> 3878.4 | O62: 38.784 | W62: =DATE(YEAR(W27+(365*4)),1,1) -> 2025-01-01 | X62: =ROUND((IF(AND(W27>=$W$62,W27<$W$63),X27,0))+(IF(AND(W28>=$W$62,W28<$W$63),X28,0))+(IF(AND(W29>=$W$62,W29<$W$63),X29,0))+(IF(AND(W30>=$W$62,W30<$W$63),X30,0))+(IF(AND(W31>=$W$62,W31<$W$63),X31,0))+(IF(AND(W32>=$W$62,W32<$W$63),X32,0))+(IF(AND(W33>=$W$62,W33<$W$63),X33,0))+(IF(AND(W34>=$W$62,W34<$W$63),X34,0))+(IF(AND(W35>=$W$62,W35<$W$63),X35,0))+(IF(AND(W36>=$W$62,W36<$W$63),X36,0))+(IF(AND(W37>=$W$62,W37<$W$63),X37,0))+(IF(AND(W38>=$W$62,W38<$W$63),X38,0))+(IF(AND(W39>=$W$62,W39<$W$63),X39,0))+(IF(AND(W40>=$W$62,W40<$W$63),X40,0))+(IF(AND(W41>=$W$62,W41<$W$63),X41,0))+(IF(AND(W42>=$W$62,W42<$W$63),X42,0))+(IF(AND(W43>=$W$62,W43<$W$63),X43,0))+(IF(AND(W44>=$W$62,W44<$W$63),X44,0))+(IF(AND(W45>=$W$62,W45<$W$63),X45,0))+(IF(AND(W46>=$W$62,W46<$W$63),X46,0))+(IF(AND(W47>=$W$62,W47<$W$63),X47,0))+(IF(AND(W48>=$W$62,W48<$W$63),X48,0))+(IF(AND(W49>=$W$62,W49<$W$63),X49,0))+(IF(AND(W50>=$W$62,W50<$W$63),X50,0)),0) -> 2 | Z62: =ROUND((IF(AND(Y27>=$W$62,Y27<$W$63),Z27,0))+(IF(AND(Y28>=$W$62,Y28<$W$63),Z28,0))+(IF(AND(Y29>=$W$62,Y29<$W$63),Z29,0))+(IF(AND(Y30>=$W$62,Y30<$W$63),Z30,0))+(IF(AND(Y31>=$W$62,Y31<$W$63),Z31,0))+(IF(AND(Y32>=$W$62,Y32<$W$63),Z32,0))+(IF(AND(Y33>=$W$62,Y33<$W$63),Z33,0))+(IF(AND(Y34>=$W$62,Y34<$W$63),Z34,0))+(IF(AND(Y35>=$W$62,Y35<$W$63),Z35,0))+(IF(AND(Y36>=$W$62,Y36<$W$63),Z36,0))+(IF(AND(Y37>=$W$62,Y37<$W$63),Z37,0))+(IF(AND(Y38>=$W$62,Y38<$W$63),Z38,0))+(IF(AND(Y39>=$W$62,Y39<$W$63),Z39,0))+(IF(AND(Y40>=$W$62,Y40<$W$63),Z40,0))+(IF(AND(Y41>=$W$62,Y41<$W$63),Z41,0))+(IF(AND(Y42>=$W$62,Y42<$W$63),Z42,0))+(IF(AND(Y43>=$W$62,Y43<$W$63),Z43,0))+(IF(AND(Y44>=$W$62,Y44<$W$63),Z44,0))+(IF(AND(Y45>=$W$62,Y45<$W$63),Z45,0))+(IF(AND(Y46>=$W$62,Y46<$W$63),Z46,0))+(IF(AND(Y47>=$W$62,Y47<$W$63),Z47,0))+(IF(AND(Y48>=$W$62,Y48<$W$63),Z48,0))+(IF(AND(Y49>=$W$62,Y49<$W$63),Z49,0))+(IF(AND(Y50>=$W$62,Y50<$W$63),Z50,0)),0) -> 4 | AB62: =ROUND((IF(AND(AA27>=$W$62,AA27<$W$63),AB27,0))+(IF(AND(AA28>=$W$62,AA28<$W$63),AB28,0))+(IF(AND(AA29>=$W$62,AA29<$W$63),AB29,0))+(IF(AND(AA30>=$W$62,AA30<$W$63),AB30,0))+(IF(AND(AA31>=$W$62,AA31<$W$63),AB31,0))+(IF(AND(AA32>=$W$62,AA32<$W$63),AB32,0))+(IF(AND(AA33>=$W$62,AA33<$W$63),AB33,0))+(IF(AND(AA34>=$W$62,AA34<$W$63),AB34,0))+(IF(AND(AA35>=$W$62,AA35<$W$63),AB35,0))+(IF(AND(AA36>=$W$62,AA36<$W$63),AB36,0))+(IF(AND(AA37>=$W$62,AA37<$W$63),AB37,0))+(IF(AND(AA38>=$W$62,AA38<$W$63),AB38,0))+(IF(AND(AA39>=$W$62,AA39<$W$63),AB39,0))+(IF(AND(AA40>=$W$62,AA40<$W$63),AB40,0))+(IF(AND(AA41>=$W$62,AA41<$W$63),AB41,0))+(IF(AND(AA42>=$W$62,AA42<$W$63),AB42,0))+(IF(AND(AA43>=$W$62,AA43<$W$63),AB43,0))+(IF(AND(AA44>=$W$62,AA44<$W$63),AB44,0))+(IF(AND(AA45>=$W$62,AA45<$W$63),AB45,0))+(IF(AND(AA46>=$W$62,AA46<$W$63),AB46,0))+(IF(AND(AA47>=$W$62,AA47<$W$63),AB47,0))+(IF(AND(AA48>=$W$62,AA48<$W$63),AB48,0))+(IF(AND(AA49>=$W$62,AA49<$W$63),AB49,0))+(IF(AND(AA50>=$W$62,AA50<$W$63),AB50,0)),0) -> 78 | AD62: =ROUND((IF(AND(AC27>=$W$62,AC27<$W$63),AD27,0))+(IF(AND(AC28>=$W$62,AC28<$W$63),AD28,0))+(IF(AND(AC29>=$W$62,AC29<$W$63),AD29,0))+(IF(AND(AC30>=$W$62,AC30<$W$63),AD30,0))+(IF(AND(AC31>=$W$62,AC31<$W$63),AD31,0))+(IF(AND(AC32>=$W$62,AC32<$W$63),AD32,0))+(IF(AND(AC33>=$W$62,AC33<$W$63),AD33,0))+(IF(AND(AC34>=$W$62,AC34<$W$63),AD34,0))+(IF(AND(AC35>=$W$62,AC35<$W$63),AD35,0))+(IF(AND(AC36>=$W$62,AC36<$W$63),AD36,0))+(IF(AND(AC37>=$W$62,AC37<$W$63),AD37,0))+(IF(AND(AC38>=$W$62,AC38<$W$63),AD38,0))+(IF(AND(AC39>=$W$62,AC39<$W$63),AD39,0))+(IF(AND(AC40>=$W$62,AC40<$W$63),AD40,0))+(IF(AND(AC41>=$W$62,AC41<$W$63),AD41,0))+(IF(AND(AC42>=$W$62,AC42<$W$63),AD42,0))+(IF(AND(AC43>=$W$62,AC43<$W$63),AD43,0))+(IF(AND(AC44>=$W$62,AC44<$W$63),AD44,0))+(IF(AND(AC45>=$W$62,AC45<$W$63),AD45,0))+(IF(AND(AC46>=$W$62,AC46<$W$63),AD46,0))+(IF(AND(AC47>=$W$62,AC47<$W$63),AD47,0))+(IF(AND(AC48>=$W$62,AC48<$W$63),AD48,0))+(IF(AND(AC49>=$W$62,AC49<$W$63),AD49,0))+(IF(AND(AC50>=$W$62,AC50<$W$63),AD50,0)),0) -> 12 | AF62: =ROUND((IF(AND(AE27>=$W$62,AE27<$W$63),AF27,0))+(IF(AND(AE28>=$W$62,AE28<$W$63),AF28,0))+(IF(AND(AE29>=$W$62,AE29<$W$63),AF29,0))+(IF(AND(AE30>=$W$62,AE30<$W$63),AF30,0))+(IF(AND(AE31>=$W$62,AE31<$W$63),AF31,0))+(IF(AND(AE32>=$W$62,AE32<$W$63),AF32,0))+(IF(AND(AE33>=$W$62,AE33<$W$63),AF33,0))+(IF(AND(AE34>=$W$62,AE34<$W$63),AF34,0))+(IF(AND(AE35>=$W$62,AE35<$W$63),AF35,0))+(IF(AND(AE36>=$W$62,AE36<$W$63),AF36,0))+(IF(AND(AE37>=$W$62,AE37<$W$63),AF37,0))+(IF(AND(AE38>=$W$62,AE38<$W$63),AF38,0))+(IF(AND(AE39>=$W$62,AE39<$W$63),AF39,0))+(IF(AND(AE40>=$W$62,AE40<$W$63),AF40,0))+(IF(AND(AE41>=$W$62,AE41<$W$63),AF41,0))+(IF(AND(AE42>=$W$62,AE42<$W$63),AF42,0))+(IF(AND(AE43>=$W$62,AE43<$W$63),AF43,0))+(IF(AND(AE44>=$W$62,AE44<$W$63),AF44,0))+(IF(AND(AE45>=$W$62,AE45<$W$63),AF45,0))+(IF(AND(AE46>=$W$62,AE46<$W$63),AF46,0))+(IF(AND(AE47>=$W$62,AE47<$W$63),AF47,0))+(IF(AND(AE48>=$W$62,AE48<$W$63),AF48,0))+(IF(AND(AE49>=$W$62,AE49<$W$63),AF49,0))+(IF(AND(AE50>=$W$62,AE50<$W$63),AF50,0)),0) -> 2
D63: =DATE(YEAR(I27+(365*5)),1,1) -> 2026-01-01 | W63: =DATE(YEAR(W27+(365*5)),1,1) -> 2026-01-01
R64: Liste déroulante
R66: Mois | S66: Mois | T66: Résultats
R67: Janvier | S67: 1 | T67: =IF(AND(S67>=$R$4,S67<=$S$4),$L$11,$L$12) -> 0.85
R68: Février | S68: 2 | T68: 0.7
R69: Mars | S69: 3 | T69: 0.7
R70: Avril | S70: 4 | T70: 0.7
R71: Mai | S71: 5 | T71: 0.7
R72: Juin | S72: 6 | T72: 0.7
R73: Juillet | S73: 7 | T73: 0.7
R74: Août | S74: 8 | T74: 0.7
R75: Septembre | S75: 9 | T75: 0.85
R76: Octobre | S76: 10 | T76: 0.85
R77: Novembre | S77: 11 | T77: 0.85
R78: Décembre | S78: 12 | T78: 0.85
R79: Liste déroulante
R81: Mois | S81: Mois | T81: Résultats
R82: 1 | S82: Janvier | T82: =IF(AND(R82>=$R$4,R82<=$S$4),$L$11,$L$12) -> 0.85
R83: 2 | S83: Février | T83: 0.7
R84: 3 | S84: Mars | T84: 0.7
R85: 4 | S85: Avril | T85: 0.7
R86: 5 | S86: Mai | T86: 0.7
R87: 6 | S87: Juin | T87: 0.7
R88: 7 | S88: Juillet | T88: 0.7
R89: 8 | S89: Août | T89: 0.7
R90: 9 | S90: Septembre | T90: 0.85
R91: 10 | S91: Octobre | T91: 0.85
R92: 11 | S92: Novembre | T92: 0.85
R93: 12 | S93: Décembre | T93: 0.85
